Workbook

Sheet Open
A2: CUBE IT $2000 OPEN 11/30/19
A3: FUT | B3: DER | C3: Age Inc | D3: HS | E3: Draw | F3: Rider | G3: Horse Name | H3: Pen | I3: Time | J3: Final Time | K3: Placing | L3: Money Earned | N3: D Placing | P3: Split
E4: 99 | F4: DeAnn Morgan | G4: Colour Me Fast | I4: 15.686 | K4: 1D 1st | L4: 927.36 | N4: 1D
E5: 166 | F5: Stephanie Fryar | G5: The Red Maseratti | I5: 15.781 | K5: 1D 2nd | L5: 772.8 | N5: 2D | P5: 0.5
C6: A | D6: X | E6: 61 | F6: Lisa Nicholas | G6: Stoli My Guy | I6: 15.788 | K6: 1D 3rd | L6: 656.88 | N6: 3D | P6: 0.5
E7: 67 | F7: Jade Crago | G7: Sophie So Sweet | I7: 15.87 | K7: 1D 4th | L7: 502.32 | N7: 4D | P7: 0.5
A8: X | C8: A | E8: 98 | F8: Kelly Allen | G8: Miss Regality | I8: 15.872 | K8: 1D 5th | L8: 386.4 | N8: 5D | P8: 0.5
B9: X | C9: A | E9: 39 | F9: Pete Oen | G9: VF Alive With Gold | I9: 15.877 | K9: 1D 6th | L9: 270.48
B10: X | C10: A | E10: 122 | F10: Kelly ALlen | G10: Moons Fire Ta Fame | I10: 15.885 | K10: 1D 7th | L10: 193.2 | N10: # Entered
E11: 5 | F11: Deven RIggins | G11: SV Southern Comfort | I11: 15.891 | K11: 1D 8th | L11: 154.56 | N11: =COUNTA(F4:F503) -> 277
C12: S | E12: 138 | F12: Sherri Barnes | G12: Famous Little Jet | I12: 15.894
C13: Y | D13: X | E13: 48 | F13: Skyler Nicholas | G13: Perrywater Dash | I13: 15.925 | N13: # Ran
B14: X | C14: A | E14: 7 | F14: Pete Oen | G14: HP Fiesta Fame | I14: 15.943 | N14: =COUNTA(I4:I503) -> 277
C15: Y | E15: 172 | F15: Lucchesse Tobias | G15: BR ThisNickGiveAFlit | I15: 15.952
B16: X | D16: X | E16: 11 | F16: Molli Montgomery | G16: Kindafeelinheavenly | I16: 15.953 | N16: # Left
A17: X | C17: A | E17: 66 | F17: Kelly Allen | G17: Miss JB 165 | I17: 15.956 | N17: =$N$11-$N$14 -> 0
B18: X | C18: A | D18: X | E18: 293 | F18: Tiany Schuster | G18: Tuecoseix | I18: 15.957
C19: S | E19: 171 | F19: Sherri Barnes | G19: Racing For Perks | I19: 15.96
C20: A | D20: X | E20: 96 | F20: Tyler Rivette | G20: Streakinflingindisco | I20: 15.987
E21: 37 | F21: Nikki Zimmerman | G21: Prime Gold | I21: 16.039
A22: X | E22: 239 | F22: Lacey Harmon | G22: Red Ryon Red Ryon | I22: 16.07
B23: X | C23: A | E23: 252 | F23: Phillip Kenyon | G23: Makeita Mojito | I23: 16.076
B24: X | E24: 91 | F24: Ashley Schafer | G24: Streakin French Star | I24: 16.087
E25: 85 | F25: Jesse Domann | G25: Ima Perry N Famous | I25: 16.093
E26: 181 | F26: Tasha Welsh | G26: H6 | I26: 16.099
C27: A | E27: 292 | F27: Phillip Kenyon | G27: Tillies Hayday | I27: 16.107
B28: X | C28: A | E28: 27 | F28: Tyler Rivette | G28: Frenchmanontherocks | I28: 16.109
E29: 6 | F29: Victorias Hazelwood | G29: PeptoDude Smal | I29: 16.117
E30: 136 | F30: Lea Baze | G30: Sheza Smooth Dash | I30: 16.119
B31: X | C31: A | D31: X | E31: 71 | F31: Pete Oen | G31: God Given Fame | I31: 16.125
C32: S | E32: 159 | F32: Martha Smith | G32: Firewatermakemehappy | I32: 16.13
E33: 238 | F33: Carlos Renato | G33: Zero | I33: 16.131
B34: X | C34: A | D34: X | E34: 231 | F34: Leslie Richards | G34: Bullys Getting Down | I34: 16.15
E35: 42 | F35: Hadley Durfey | G35: Delightful Brownies | I35: 16.165
C36: S | E36: 237 | F36: Terry Quintana | G36: Rappin Ole Tom | I36: 16.191 | K36: 2D 1st | L36: 772.8
E37: 229 | F37: Cindy Stone | G37: Daisy | I37: 16.232 | K37: 2D 2nd | L37: 644
E38: 22 | F38: Casey Hammons | G38: BH Trip Ta Fame | I38: 16.257 | K38: 2D 3rd | L38: 547.4
C39: A | D39: X | E39: 256 | F39: Tiany Schuster | G39: Showmance | I39: 16.261 | K39: 2D 4th | L39: 418.6
E40: 36 | F40: Jade Crago | G40: High Road Ta Fame | I40: 16.265 | K40: 2D 5th | L40: 322
E41: 201 | F41: Tammy Rokus | G41: Mitey Confederate | I41: 16.267 | K41: 2D 6th | L41: 225.4
A42: X | E42: 12 | F42: Brittany Pierson | G42: CF Dash N Dirty | I42: 16.273 | K42: 2D 7th | L42: 161
E43: 62 | F43: Wendy Weems | G43: Goin Slow | I43: 16.295 | K43: 2D 8th | L43: 128.8
C44: A | E44: 196 | F44: Callye Russell | G44: Tati Jo Lena | I44: 16.315
E45: 180 | F45: Lacy Billingsley | G45: VF High N Famous | I45: 16.352
E46: 209 | F46: Gena Franklin | G46: SS Streaky Me | I46: 16.357
E47: 183 | F47: Dawn Fryar | I47: 16.378
B48: X | C48: A | D48: X | E48: 228 | F48: Tiany Schuster | G48: Streakin Money Red | I48: 16.379
B49: X | E49: 121 | F49: Joy Wargo | G49: Heats Easy Streaker | I49: 16.379
E50: 60 | F50: Krista Whitley | G50: Frenchmans Splash | I50: 16.385
B51: X | E51: 64 | F51: Joy Wargo | G51: Fiesta James | I51: 16.396
E52: 30 | F52: Wendy Weems | G52: Brick | I52: 16.401
C53: A | E53: 274 | F53: Leslie Richards | G53: A Dash of Killian | I53: 16.405
E54: 77 | F54: Kendall Jordan | G54: Guns On Fire | I54: 16.41
C55: A | E55: 224 | F55: Brooke Kelley | G55: No Bueno Karma | I55: 16.413
C56: S | E56: 234 | F56: Glenda Barnett | G56: Opey | I56: 16.434
A57: X | E57: 137 | F57: Tasha Welsh | G57: Epic Dasher | I57: 16.452
E58: 80 | F58: Kelly Govero | G58: Shake It Up Easy Jet | I58: 16.454
C59: S | E59: 143 | F59: Jana Kurosky | G59: Winnies Red Kai | I59: 16.46
A60: X | C60: A | E60: 102 | F60: Pete Oen | G60: Seis N Frost | I60: 16.472
E61: 242 | F61: Darcie Moody | G61: CD Topless Victory | I61: 16.475
C62: A | E62: 164 | F62: Molly Steffen | G62: Ruggen French Guy | I62: 16.484
A63: X | E63: 158 | F63: Tasha Welsh | G63: JRT SadiesFrostyshoes | I63: 16.487
C64: A | E64: 217 | F64: Alyssa Gabrielson | G64: Odie | I64: 16.493
E65: 111 | F65: Jill Crotta | G65: Stormy | I65: 16.495
E66: 253 | F66: Cristin Posey | G66: chilli | I66: 16.5
E67: 2 | F67: Wendy Suhn | G67: Hes Just A Fling | I67: 16.501
E68: 82 | F68: Denny Ralls | G68: Sweet Movin Firewater | I68: 16.511
E69: 243 | F69: Corbin Pinyan | G69: H1 | I69: 16.514
E70: 294 | F70: Davie King | G70: Alvin | I70: 16.514
E71: 78 | F71: Wendy Suhn | G71: She B Astreakin | I71: 16.517
E72: 157 | F72: Ashley Schafer | G72: Bailys Streakinchick | I72: 16.528
E73: 168 | F73: Billie Ann Harmon | G73: Brother | I73: 16.545
C74: S | E74: 163 | F74: Jolene Jones | G74: Streakin Louie | I74: 16.561
A75: X | E75: 21 | F75: Krista Whitley | G75: Fabulace Fame | I75: 16.564
E76: 173 | F76: Dani Buhler | G76: A Holly Spark | I76: 16.574
C77: S | E77: 110 | F77: Jana Kurosky | G77: TCS Rare Man M Fol | I77: 16.589
C78: Y | E78: 128 | F78: Stormi Branch | G78: Demon | I78: 16.601
E79: 182 | F79: Christa Clark | G79: Harts Off Limits | I79: 16.603
E80: 162 | F80: Daryll Kessler | G80: Irish Firewater | I80: 16.605
A81: X | E81: 317 | F81: Tiany Schuster | G81: SRD Angels Fury | I81: 16.61
C82: A | E82: 296 | F82: Mechelle Tyler | G82: Kissesforcaris | I82: 16.613
E83: 142 | F83: Pattie Mackie | G83: Dunnits Genuine 007 | I83: 16.617
C84: S | E84: 113 | F84: Mary Carter | G84: Bullys Tiger Eye | I84: 16.625
E85: 200 | F85: Traci Preissi | G85: KK Runaway Cricket | I85: 16.632
E86: 114 | F86: Nikki Cain | G86: Smooth Finances | I86: 16.635
A87: X | E87: 106 | F87: Tasha Welsh | G87: Guys Yellow Rose | I87: 16.65
A88: X | C88: S | E88: 108 | F88: Bo Hill | G88: Lacey Lady Bugs | I88: 16.651
E89: 10 | F89: Sara Redden | G89: Ocho | I89: 16.653
E90: 319 | F90: Reece Cook | G90: Bar Tee Peanut | I90: 16.658
E91: 139 | F91: Kerrie Cannon | G91: Patch | I91: 16.659
C92: S | E92: 127 | F92: Martha Smith | G92: My Epic Moment | I92: 16.665
E93: 123 | F93: Hannah Hertel | G93: Egos Moving Effort | I93: 16.67
A94: X | E94: 95 | F94: Jennifer Burgess | G94: SO Im A Famous Guy | I94: 16.676
E95: 17 | F95: Kylena Hager | G95: Bar B Firewater Steel | I95: 16.677
C96: S | E96: 156 | F96: Lisa Wernli | G96: Babe on The Run | I96: 16.686 | K96: 3D 1st | L96: 618.24
E97: 273 | F97: Mandi Thomas | G97: Verily Quick Bugs | I97: 16.687 | K97: 3D 2nd | L97: 515.2
E98: 69 | F98: Emma Abbott | G98: Eastwood | I98: 16.692 | K98: 3D 3rd | L98: 437.92
E99: 160 | F99: Hannah Hertel | G99: Zeus | I99: 16.7 | K99: 3D 4th | L99: 334.88
E100: 13 | F100: Hailey Loose | G100: Shiners Blue Frost | I100: 16.709 | K100: 3D 5th | L100: 257.6
C101: A | E101: 249 | F101: Jennifer Abbott | G101: Wendell Jackson | I101: 16.711 | K101: 3D 6th | L101: 180.32
A102: X | E102: 54 | F102: Tasha Welsh | G102: SR Epic Wildcatter | I102: 16.73 | K102: 3D 7th/8th | L102: 116
E103: 208 | F103: Jo Kirby | G103: Heavenly Joak | I103: 16.73 | K103: 3D 7th/8th | L103: 116
C104: A | E104: 35 | F104: Kelly Allen | G104: Boon Voyage | I104: 16.731
E105: 147 | F105: Lacy Matthews | G105: Shilohs Perky Pistol | I105: 16.737
E106: 247 | F106: Reece Cook | G106: Frosted in Dreams | I106: 16.738
E107: 321 | F107: Davie King | G107: Jessie | I107: 16.745
E108: 148 | F108: Lacy Billingsley | G108: Dirty Dizco Diane 37 | I108: 16.747
E109: 146 | F109: Carlos Renato | G109: Coup | I109: 16.748
C110: A | E110: 41 | F110: Megan Mack | G110: Chic Pleez Shine | I110: 16.749
A111: X | E111: 45 | F111: Brittany Pierson | G111: Guyko | I111: 16.749
E112: 55 | F112: Kristi Smith | G112: ELS Dynaflow Hooter | I112: 16.767
E113: 216 | F113: Courtney Moose | G113: Classic Ivory | I113: 16.777
E114: 203 | F114: Dawn Link | G114: This Jets A Dream | I114: 16.793
E115: 189 | F115: Bill Barber | G115: Cruzn Ona Jet | I115: 16.803
C116: S | E116: 149 | F116: Mary Carter | G116: Bully Bully Fame | I116: 16.809
E117: 318 | F117: Lacey Harmon | I117: 16.815
E118: 167 | F118: Bailey Lodermeier | G118: Ellens Spoonful | I118: 16.82
E119: 4 | F119: Sally Conway | G119: Haydaysdashinfashion | I119: 16.827
E120: 73 | F120: Molli Montgomery | G120: Jewel | I120: 16.828
E121: 93 | F121: Joy Wargo | G121: WR Calamity Fame | I121: 16.828
E122: 94 | F122: Jenna Napier | G122: Frenchmans Dually | I122: 16.832
A123: X | E123: 213 | F123: Joy Wargo | G123: Happy Last Fame | I123: 16.833
C124: Y | E124: 245 | F124: Ella McCry | G124: Drifter | I124: 16.846
B125: X | E125: 28 | F125: Shaun Sandoval | G125: Tina Turner Legs 37 | I125: 16.849
C126: A | E126: 227 | F126: Phillip Kenyon | G126: SV Sun Kinda Wonder | I126: 16.854
E127: 133 | F127: Kim Eisen | G127: Dollar | I127: 16.86
E128: 194 | F128: Kathy Vasquez | G128: Cool Ta Fame | I128: 16.86
A129: X | E129: 115 | F129: Billie Ann Harmon | G129: Me Flingin Diamonds | I129: 16.861
B130: X | E130: 195 | F130: Casey Guess | G130: This Cats Streakin | I130: 16.874
E131: 107 | F131: Jessica Fuson | G131: Mr Brownstone Heir | I131: 16.876
C132: A | E132: 186 | F132: Tina Cain | G132: GCH Takin On The Sun | I132: 16.879
E133: 34 | F133: Molli Montgomery | G133: Billy | I133: 16.886
E134: 68 | F134: Nikki Zimmerman | G134: StreakinNFamous | I134: 16.886
E135: 154 | F135: Kelli Acreman | G135: Famous Fiesta Twist | I135: 16.887
E136: 89 | F136: Emma Abbott | G136: H2 | I136: 16.9
E137: 226 | F137: Kristin Dorman | G137: Easy | I137: 16.911
C138: S | E138: 88 | F138: Dee Dee Jordan | G138: Lil Yella Draw | I138: 16.921
E139: 47 | F139: Sara Redden | G139: Pedro | I139: 16.926
E140: 206 | F140: Lynn Saunders | G140: Chumley | I140: 16.934
C141: A | E141: 32 | F141: Cody Hornbuckle | G141: CJ EzBreezyCovergirl | I141: 16.937
E142: 76 | F142: Brittany Pierson | G142: Smokee Whiz | I142: 16.938
E143: 151 | F143: Nikki Cain | G143: Compromised Perks | I143: 16.953
E144: 15 | F144: Brittney Barnett | G144: Cool Hand Quintessa | I144: 16.955
E145: 100 | F145: Nikki Zimmerman | G145: Talented Charmer | I145: 16.967
E146: 116 | F146: Daryll Kessler | G146: Shes So Slick | I146: 16.992
E147: 38 | F147: Christi Durfey | G147: Jess Blazin Otoe | I147: 16.994
E148: 134 | F148: Lisa Jo Velliquette | G148: Namgis D 44 | I148: 17.035
A149: X | E149: 132 | F149: DeAnn Morgan | G149: Paid For A Fling | I149: 17.054
E150: 250 | F150: Tara Lee Woodall | G150: Sixes Eyesa | I150: 17.073
E151: 20 | F151: Tracy Peterson | G151: Dox Marvelous | I151: 17.092
C152: A | E152: 188 | F152: Whitney Fisher | G152: BB French N Easy | I152: 17.099
A153: X | E153: 254 | F153: Suade Furr | G153: Dashin French Socks | I153: 17.114
C154: A | E154: 198 | F154: Sierra Carradine | G154: Vibrant Instant | I154: 17.148
C155: S | E155: 155 | F155: Dee Dee Jordan | G155: Fame Flingin Rebel | I155: 17.157
E156: 50 | F156: Lacy Kimball | G156: Lawmans Eye | I156: 17.165
E157: 298 | F157: Hayva Hawkins | G157: Rocket | I157: 17.198 | K157: 4D 1st | L157: 463.68
A158: X | E158: 87 | F158: Billie Ann Harmon | G158: Bug On Firewater | I158: 17.215 | K158: 4D 2nd | L158: 386.4
C159: Y | E159: 207 | F159: Cara Crider | G159: Diesel | I159: 17.236 | K159: 4D 3rd | L159: 328.44
C160: A | E160: 75 | F160: Megan Mack | G160: ML Magic | I160: 17.241 | K160: 4D 4th | L160: 251.16
E161: 284 | F161: Wyatt Paul | G161: Flask of Firewater | I161: 17.276 | K161: 4D 5th | L161: 193.2
A162: X | E162: 23 | F162: Tori Volk | G162: CN Holy Cow | I162: 17.287 | K162: 4D 6th | L162: 135.24
E163: 219 | F163: Jacquelyn Jones | G163: Kat | I163: 17.292 | K163: 4D 7th | L163: 96.6
A164: X | E164: 18 | F164: Jennifer Burgess | G164: Whata Annie Oakley | I164: 17.299 | K164: 4D 8th | L164: 77.28
E165: 31 | F165: Kyle Leleux | G165: H1 | I165: 17.362
A166: X | E166: 212 | F166: Kelli Acreman | G166: DK Buggin On Fame | I166: 17.407
A167: X | C167: S | E167: 174 | F167: Carolyn Stoy | G167: Lil Miss Tenseltown | I167: 17.43
E168: 190 | F168: Stephanie Fryar | G168: Litem Up Im On Fire | I168: 17.433
C169: Y | E169: 258 | F169: Jaidyn Ornelas | G169: Awards First | I169: 17.444
E170: 169 | F170: Debra Cooper | G170: Hugginanativepepto | I170: 17.482
C171: A | E171: 187 | F171: Tiffany Durham | G171: Spect Snow | I171: 17.493
E172: 25 | F172: Lisa Nicholas | G172: SO Im A Famous Chic | I172: 17.498
E173: 16 | F173: Kristi Smith | G173: Frenchmans Playgun | I173: 17.504
E174: 26 | F174: Renee Osborne | G174: Hurricane | I174: 17.558
A175: X | E175: 141 | F175: Billie Ann Harmon | G175: Seis French Kysses | I175: 17.589
E176: 179 | F176: Daisy Baird | G176: Teninas Smart Cookie | I176: 17.6
A177: X | C177: A | E177: 101 | F177: Tiffany Durham | G177: RR Lil Red Wagon | I177: 17.613
E178: 1 | F178: Lisa Corey | G178: Beda Dream | I178: 17.655
C179: A | E179: 9 | F179: Tiffany Durham | G179: Joaks Rollin Smoke | I179: 17.66
C180: Y | E180: 24 | F180: Jolie Smith | G180: Docs Lil Leo | I180: 17.685
E181: 144 | F181: Jill Crotta | G181: Messer | I181: 17.707 | K181: 5D 1st | L181: 309.12
E182: 59 | F182: Carly Peercy | G182: Sheenas Last Dance | I182: 17.717 | K182: 5D 2nd | L182: 257.6
C183: Y | E183: 74 | F183: Logan Lewis | G183: Smart Sassy Chick | I183: 17.728 | K183: 5D 3rd | L183: 218.96
E184: 118 | F184: Patty Ralls | G184: Romeo | I184: 17.776 | K184: 5D 4th | L184: 167.44
C185: Y | E185: 44 | F185: Brooke Leherman | G185: BKL Painted Skye | I185: 17.778 | K185: 5D 5th | L185: 128.8
E186: 322 | F186: Timberly Erickson | G186: Mines Fast | I186: 17.794 | K186: 5D 6th | L186: 90.16
E187: 205 | F187: TJ Braganca | G187: Uno Blazin Pistol | I187: 17.818 | K187: 5D 7th | L187: 64.4
E188: 170 | F188: Lacy Matthews | G188: Plenty Of Good Bars | I188: 17.887 | K188: 5D 8th | L188: 51.52
E189: 29 | F189: LJ LaRue | G189: Flash | I189: 17.889
A190: X | E190: 161 | F190: Shelby Stansbury | G190: KC MoonshinoverRocs | I190: 17.927
E191: 241 | F191: Allison Humphrey | G191: Julies Chey Tres | I191: 17.995
B192: X | E192: 103 | F192: Ty York | G192: Heza Riot | I192: 18.012
E193: 263 | F193: Courtney Worthington | G193: CM Bubbas Spice Girl | I193: 18.022
A194: X | E194: 153 | F194: Geneva Kelly | G194: Kick Some Dust Up | I194: 18.142
B195: X | C195: A | E195: 57 | F195: Tiffany Durham | G195: Colonels Kerosene | I195: 18.156
C196: Y | E196: 131 | F196: Mikayla Cearley | G196: TFPeppysmokensavage | I196: 18.328
E197: 246 | F197: Mandi Thomas | G197: Ice Art | I197: 18.331
E198: 150 | F198: Patty Ralls | G198: Jeeper | I198: 18.698
A199: X | C199: A | E199: 145 | F199: Tiffany Durham | G199: Dashin Luke Perry | I199: 18.805
E200: 14 | F200: Jenna Stafford | G200: My Dumplins R Famous | I200: 18.872
A201: X | E201: 56 | F201: Jennifer Burgess | G201: Frosted Vagabond | I201: 19.497
... 302 more rows

Sheet Adult
A1: Futurity | B1: Der | C1: Age Inct. | D1: BBR | E1: Draw | F1: Rider Name | G1: Horse Name | H1: Pen | I1: Time | J1: Final Time | K1: Placing | L1: Money Earned
E2: 1 | F2: Lisa Nicholas | G2: Stoli My Guy | I2: 15.788 | K2: 1D 1st | L2: 147
E3: 2 | F3: Kelly Allen | G3: Miss Regality | I3: 15.872 | K3: 1D 2nd | L3: 88.2
E4: 3 | F4: Pete Oen | G4: VF Alive With Gold | I4: 15.877 | K4: 1D 3rd | L4: 58.8
E5: 4 | F5: Kelly ALlen | G5: Moons Fire Ta Fame | I5: 15.885
E6: 5 | F6: Pete Oen | G6: HP Fiesta Fame | I6: 15.943
E7: 6 | F7: Kelly Allen | G7: Miss JB 165 | I7: 15.956
E8: 7 | F8: Tiany Schuster | G8: Tuecoseix | I8: 15.957
E9: 8 | F9: Tyler Rivette | G9: Streakinflingindisco | I9: 15.987
E10: 9 | F10: Phillip Kenyon | G10: Makeita Mojito | I10: 16.076
E11: 10 | F11: Phillip Kenyon | G11: Tillies Hayday | I11: 16.107
E12: 11 | F12: Tyler Rivette | G12: Frenchmanontherocks | I12: 16.109
E13: 12 | F13: Pete Oen | G13: God Given Fame | I13: 16.125
E14: 13 | F14: Leslie Richards | G14: Bullys Getting Down | I14: 16.15
E15: 14 | F15: Tiany Schuster | G15: Showmance | I15: 16.261
E16: 15 | F16: Callye Russell | G16: Tati Jo Lena | I16: 16.315 | K16: 2D 1st | L16: 126
E17: 16 | F17: Tiany Schuster | G17: Streakin Money Red | I17: 16.379 | K17: 2D 2nd | L17: 75.6
E18: 17 | F18: Leslie Richards | G18: A Dash of Killian | I18: 16.405 | K18: 2D 3rd | L18: 50.4
E19: 18 | F19: Brooke Kelley | G19: No Bueno Karma | I19: 16.413
E20: 19 | F20: Pete Oen | G20: Seis N Frost | I20: 16.472
E21: 20 | F21: Molly Steffen | G21: Ruggen French Guy | I21: 16.484
E22: 21 | F22: Alyssa Gabrielson | G22: Odie | I22: 16.493
E23: 22 | F23: Mechelle Tyler | G23: Kissesforcaris | I23: 16.613
E24: 23 | F24: Jennifer Abbott | G24: Wendell Jackson | I24: 16.711
E25: 24 | F25: Kelly Allen | G25: Boon Voyage | I25: 16.731
E26: 25 | F26: Megan Mack | G26: Chic Pleez Shine | I26: 16.749
E27: 26 | F27: Phillip Kenyon | G27: SV Sun Kinda Wonder | I27: 16.854 | K27: 3D 1st | L27: 84
E28: 27 | F28: Tina Cain | G28: GCH Takin On The Sun | I28: 16.879 | K28: 3D 2nd | L28: 50.4
E29: 28 | F29: Cody Hornbuckle | G29: CJ EzBreezyCovergirl | I29: 16.937 | K29: 3D 3rd | L29: 33.6
E30: 29 | F30: Whitney Fisher | G30: BB French N Easy | I30: 17.099
E31: 30 | F31: Sierra Carradine | G31: Vibrant Instant | I31: 17.148
E32: 31 | F32: Megan Mack | G32: ML Magic | I32: 17.241
E33: 32 | F33: Tiffany Durham | G33: Spect Snow | I33: 17.493 | K33: 4D 1st | L33: 63
E34: 33 | F34: Tiffany Durham | G34: RR Lil Red Wagon | I34: 17.613 | K34: 4D 2nd | L34: 37.8
E35: 34 | F35: Tiffany Durham | G35: Joaks Rollin Smoke | I35: 17.66 | K35: 4D 3rd | L35: 25.2
E36: 35 | F36: Tiffany Durham | G36: Colonels Kerosene | I36: 18.156
E37: 36 | F37: Tiffany Durham | G37: Dashin Luke Perry | I37: 18.805
E38: 37 | F38: Tristan Mounts | G38: Blazed Gunsmoke | I38: 33.838
E39: 38 | F39: Mandi Cleveland | G39: Little Bit Of Load | I39: nt
E40: 39 | F40: Mechelle Tyler | G40: Skybluebella | I40: nt
E41: 40 | F41: Sunnie Thiberville | G41: OKR Shinny Starlight | I41: nt16.253
E42: 41 | F42: Pete Oen | G42: One TO Wish For | I42: nt16.659
E43: 42 | F43: Shantell Hayes | I43: nt18.937
E44: 43
E45: 44
E46: 45
E47: 46
E48: 47
E49: 48
E50: 49
E51: 50
E52: 51
E53: 52
E54: 53
E55: 54
E56: 55
E57: 56
E58: 57
E59: 58
E60: 59
E61: 60
E62: 61
E63: 62
E64: 63
E65: 64
E66: 65
E67: 66
E68: 67
E69: 68
E70: 69
E71: 70
E72: 71 | J72: =IF(OR(H72=5,H72=10, H72=15, H72="BP",H72="SCR"),"NT",I72) -> 0
E73: 72 | J73: 0
E74: 73 | J74: 0
E75: 74 | J75: 0
E76: 75 | J76: 0
E77: 76 | J77: 0
E78: 77 | J78: 0
E79: 78 | J79: 0
E80: 79 | J80: 0
E81: 80 | J81: 0
E82: 81 | J82: 0
E83: 82 | J83: 0
E84: 83 | J84: 0
E85: 84 | J85: 0
E86: 85 | J86: 0
E87: 86 | J87: 0
E88: 87 | J88: 0
E89: 88 | J89: 0
E90: 89 | J90: 0
E91: 90 | J91: 0
E92: 91 | J92: 0
E93: 92 | J93: 0
E94: 93 | J94: 0
E95: 94 | J95: 0
E96: 95 | J96: 0
E97: 96 | J97: 0
E98: 97 | J98: 0
E99: 98 | J99: 0
E100: 99 | J100: 0
E101: 100 | J101: 0
E102: 101 | J102: 0
E103: 102 | J103: 0
E104: 103 | J104: 0
E105: 104 | J105: 0
E106: 105 | J106: 0
E107: 106 | J107: 0
E108: 107 | J108: 0
E109: 108 | J109: 0
E110: 109 | J110: 0
E111: 110 | J111: 0
E112: 111 | J112: 0
E113: 112 | J113: 0
E114: 113 | J114: 0
E115: 114 | J115: 0
E116: 115 | J116: 0
E117: 116 | J117: 0
E118: 117 | J118: 0
E119: 118 | J119: 0
E120: 119 | J120: 0
E121: 120 | J121: 0
E122: 121 | J122: 0
E123: 122 | J123: 0
E124: 123 | J124: 0
E125: 124 | J125: 0
E126: 125 | J126: 0
E127: 126 | J127: 0
E128: 127 | J128: 0
E129: 128 | J129: 0
E130: 129 | J130: 0
E131: 130 | J131: 0
E132: 131 | J132: 0
E133: 132 | J133: 0
E134: 133 | J134: 0
E135: 134 | J135: 0
E136: 135 | J136: =IF(OR(H136=5,H136=10, H136=15, H136="BP",H136="SCR"),"NT",I136) -> 0
E137: 136 | J137: 0
E138: 137 | J138: 0
E139: 138 | J139: 0
E140: 139 | J140: 0
E141: 140 | J141: 0
E142: 141 | J142: 0
E143: 142 | J143: 0
E144: 143 | J144: 0
E145: 144 | J145: 0
E146: 145 | J146: 0
E147: 146 | J147: 0
E148: 147 | J148: 0
E149: 148 | J149: 0
E150: 149 | J150: 0
E151: 150 | J151: 0
E152: 151 | J152: 0
E153: 152 | J153: 0
E154: 153 | J154: 0
E155: 154 | J155: 0
E156: 155 | J156: 0
E157: 156 | J157: 0
E158: 157 | J158: 0
E159: 158 | J159: 0
E160: 159 | J160: 0
E161: 160 | J161: 0
E162: 161 | J162: 0
E163: 162 | J163: 0
E164: 163 | J164: 0
E165: 164 | J165: 0
E166: 165 | J166: 0
E167: 166 | J167: 0
E168: 167 | J168: 0
E169: 168 | J169: 0
E170: 169 | J170: 0
E171: 170 | J171: 0
E172: 171 | J172: 0
E173: 172 | J173: 0
E174: 173 | J174: 0
E175: 174 | J175: 0
E176: 175 | J176: 0
E177: 176 | J177: 0
E178: 177 | J178: 0
E179: 178 | J179: 0
E180: 179 | J180: 0
E181: 180 | J181: 0
E182: 181 | J182: 0
E183: 182 | J183: 0
E184: 183 | J184: 0
E185: 184 | J185: 0
E186: 185 | J186: 0
E187: 186 | J187: 0
E188: 187 | J188: 0
E189: 188 | J189: 0
E190: 189 | J190: 0
E191: 190 | J191: 0
E192: 191 | J192: 0
E193: 192 | J193: 0
E194: 193 | J194: 0
E195: 194 | J195: 0
E196: 195 | J196: 0
E197: 196 | J197: 0
E198: 197 | J198: 0
E199: 198 | J199: 0
E200: 199 | J200: =IF(OR(H200=5,H200=10, H200=15, H200="BP",H200="SCR"),"NT",I200) -> 0
... 101 more rows

Sheet Youth
A1: Futurity | B1: Der | C1: Age Inct. | D1: BBR | E1: Draw | F1: Rider Name | G1: Horse Name | H1: Pen | I1: Time | J1: Placing | K1: Money Earned
E2: 1 | F2: Skyler Nicholas | G2: Perrywater Dash | I2: 15.925 | J2: 1D 1st | K2: 84
E3: 2 | F3: Lucchesse Tobias | G3: BR ThisNickGiveAFlit | I3: 15.952
E4: 3 | F4: Stormi Branch | G4: Demon | I4: 16.601 | J4: 2D 1st | K4: 72
E5: 4 | F5: Ella McCry | G5: Drifter | I5: 16.846
E6: 5 | F6: Cara Crider | G6: Diesel | I6: 17.236 | J6: 3D 1st | K6: 48
E7: 6 | F7: Jaidyn Ornelas | G7: Awards First | I7: 17.444 | J7: 4D 1st | K7: 36
E8: 7 | F8: Jolie Smith | G8: Docs Lil Leo | I8: 17.685
E9: 8 | F9: Logan Lewis | G9: Smart Sassy Chick | I9: 17.728
E10: 9 | F10: Brooke Leherman | G10: BKL Painted Skye | I10: 17.778
E11: 10 | F11: Mikayla Cearley | G11: TFPeppysmokensavage | I11: 18.328
E12: 11 | F12: Ellie Hunter | G12: Classic Sunray | I12: nt17.082
E13: 12 | F13: Kyley Kenley | G13: Spanky | I13: nt17.175
E14: 13
E15: 14
E16: 15
E17: 16
E18: 17
E19: 18
E20: 19
E21: 20
E22: 21
E23: 22
E24: 23
E25: 24
E26: 25
E27: 26
E28: 27
E29: 28
E30: 29
E31: 30
E32: 31
E33: 32
E34: 33
E35: 34
E36: 35
E37: 36
E38: 37
E39: 38
E40: 39
E41: 40
E42: 41
E43: 42
E44: 43
E45: 44
E46: 45
E47: 46
E48: 47
E49: 48
E50: 49
E51: 50
E52: 51
E53: 52
E54: 53
E55: 54
E56: 55
E57: 56
E58: 57
E59: 58
E60: 59
E61: 60
E62: 61
E63: 62
E64: 63
E65: 64
E66: 65
E67: 66
E68: 67
E69: 68
E70: 69
E71: 70
E72: 71
E73: 72
E74: 73
E75: 74
E76: 75
E77: 76
E78: 77
E79: 78
E80: 79
E81: 80
E82: 81
E83: 82
E84: 83
E85: 84
E86: 85
E87: 86
E88: 87
E89: 88
E90: 89
E91: 90
E92: 91
E93: 92
E94: 93
E95: 94
E96: 95
E97: 96
E98: 97
E99: 98
E100: 99
E101: 100
E102: 101
E103: 102
E104: 103
E105: 104
E106: 105
E107: 106
E108: 107
E109: 108
E110: 109
E111: 110
E112: 111
E113: 112
E114: 113
E115: 114
E116: 115
E117: 116
E118: 117
E119: 118
E120: 119
E121: 120
E122: 121
E123: 122
E124: 123
E125: 124
E126: 125
E127: 126
E128: 127
E129: 128
E130: 129
E131: 130
E132: 131
E133: 132
E134: 133
E135: 134
E136: 135
E137: 136
E138: 137
E139: 138
E140: 139
E141: 140
E142: 141
E143: 142
E144: 143
E145: 144
E146: 145
E147: 146
E148: 147
E149: 148
E150: 149
E151: 150
E152: 151
E153: 152
E154: 153
E155: 154
E156: 155
E157: 156
E158: 157
E159: 158
E160: 159
E161: 160
E162: 161
E163: 162
E164: 163
E165: 164
E166: 165
E167: 166
E168: 167
E169: 168
E170: 169
E171: 170
E172: 171
E173: 172
E174: 173
E175: 174
E176: 175
E177: 176
E178: 177
E179: 178
E180: 179
E181: 180
E182: 181
E183: 182
E184: 183
E185: 184
E186: 185
E187: 186
E188: 187
E189: 188
E190: 189
E191: 190
E192: 191
E193: 192
E194: 193
E195: 194
E196: 195
E197: 196
E198: 197
E199: 198
E200: 199
... 101 more rows

Sheet Derby
A1: Futurity | B1: Der | C1: Age Inct. | D1: BBR | E1: Draw | F1: Rider Name | G1: Horse Name | H1: c/o | I1: Time | J1: Final Time | K1: Placing | L1: Money Earned
E2: 1 | F2: Pete Oen | G2: VF Alive With Gold | I2: 15.877 | K2: 1st
E3: 2 | F3: Kelly ALlen | G3: Moons Fire Ta Fame | I3: 15.885
E4: 3 | F4: Pete Oen | G4: HP Fiesta Fame | I4: 15.943
E5: 4 | F5: Molli Montgomery | G5: Kindafeelinheavenly | I5: 15.953
E6: 5 | F6: Tiany Schuster | G6: Tuecoseix | I6: 15.957
E7: 6 | F7: Phillip Kenyon | G7: Makeita Mojito | I7: 16.076
E8: 7 | F8: Ashley Schafer | G8: Streakin French Star | I8: 16.087
E9: 8 | F9: Tyler Rivette | G9: Frenchmanontherocks | I9: 16.109
E10: 9 | F10: Pete Oen | G10: God Given Fame | I10: 16.125
E11: 10 | F11: Leslie Richards | G11: Bullys Getting Down | I11: 16.15
E12: 11 | F12: Joy Wargo | G12: Heats Easy Streaker | I12: 16.379
E13: 12 | F13: Tiany Schuster | G13: Streakin Money Red | I13: 16.379
E14: 13 | F14: Joy Wargo | G14: Fiesta James | I14: 16.396
E15: 14 | F15: Shaun Sandoval | G15: Tina Turner Legs 37 | I15: 16.849
E16: 15 | F16: Casey Guess | G16: This Cats Streakin | I16: 16.874
E17: 16 | F17: Ty York | G17: Heza Riot | I17: 18.012
E18: 17 | F18: Tiffany Durham | G18: Colonels Kerosene | I18: 18.156
E19: 18 | F19: Andrea Sewell | G19: Uptown Fame | I19: nt16.024
E20: 19 | F20: Andrea Cline | G20: Blurry Bug Leo | I20: nt16.403
E21: 20 | F21: Ashley Schafer | G21: Guys Bankin On Fame | I21: nt16.973 | J21: =IF(OR(H21=5,H21=10, H21=15, H21="BP",H21="SCR"),"NT",I21) -> nt16.973
E22: 21 | J22: 0
E23: 22 | J23: 0
E24: 23 | J24: 0
E25: 24 | J25: 0
E26: 25 | J26: 0
E27: 26 | J27: 0
E28: 27 | J28: 0
E29: 28 | J29: 0
E30: 29 | J30: 0
E31: 30 | J31: 0
E32: 31 | J32: 0
E33: 32 | J33: 0
E34: 33 | J34: 0
E35: 34 | J35: 0
E36: 35 | J36: 0
E37: 36 | J37: 0
E38: 37 | J38: 0
E39: 38 | J39: 0
E40: 39 | J40: 0
E41: 40 | J41: 0
E42: 41 | J42: 0
E43: 42 | J43: 0
E44: 43 | J44: 0
E45: 44 | J45: 0
E46: 45 | J46: 0
E47: 46 | J47: 0
E48: 47 | J48: 0
E49: 48 | J49: 0
E50: 49 | J50: 0
E51: 50 | J51: 0
E52: 51 | J52: 0
E53: 52 | J53: 0
E54: 53 | J54: 0
E55: 54 | J55: 0
E56: 55 | J56: 0
E57: 56 | J57: 0
E58: 57 | J58: 0
E59: 58 | J59: 0
E60: 59 | J60: 0
E61: 60 | J61: 0
E62: 61 | J62: 0
E63: 62 | J63: 0
E64: 63 | J64: 0
E65: 64 | J65: 0
E66: 65 | J66: 0
E67: 66 | J67: 0
E68: 67 | J68: 0
E69: 68 | J69: 0
E70: 69 | J70: 0
E71: 70 | J71: 0
E72: 71 | J72: 0
E73: 72 | J73: 0
E74: 73 | J74: 0
E75: 74 | J75: 0
E76: 75 | J76: 0
E77: 76 | J77: 0
E78: 77 | J78: 0
E79: 78 | J79: 0
E80: 79 | J80: 0
E81: 80 | J81: 0
E82: 81 | J82: =IF(OR(H82=5,H82=10, H82=15, H82="BP",H82="SCR"),"NT",I82) -> 0
E83: 82 | J83: 0
E84: 83 | J84: 0
E85: 84 | J85: 0
E86: 85 | J86: 0
E87: 86 | J87: 0
E88: 87 | J88: 0
E89: 88 | J89: 0
E90: 89 | J90: 0
E91: 90 | J91: 0
E92: 91 | J92: 0
E93: 92 | J93: 0
E94: 93 | J94: 0
E95: 94 | J95: 0
E96: 95 | J96: 0
E97: 96 | J97: 0
E98: 97 | J98: 0
E99: 98 | J99: 0
E100: 99 | J100: 0
E101: 100 | J101: 0
E102: 101 | J102: 0
E103: 102 | J103: 0
E104: 103 | J104: 0
E105: 104 | J105: 0
E106: 105 | J106: 0
E107: 106 | J107: 0
E108: 107 | J108: 0
E109: 108 | J109: 0
E110: 109 | J110: 0
E111: 110 | J111: 0
E112: 111 | J112: 0
E113: 112 | J113: 0
E114: 113 | J114: 0
E115: 114 | J115: 0
E116: 115 | J116: 0
E117: 116 | J117: 0
E118: 117 | J118: 0
E119: 118 | J119: 0
E120: 119 | J120: 0
E121: 120 | J121: 0
E122: 121 | J122: 0
E123: 122 | J123: 0
E124: 123 | J124: 0
E125: 124 | J125: 0
E126: 125 | J126: 0
E127: 126 | J127: 0
E128: 127 | J128: 0
E129: 128 | J129: 0
E130: 129 | J130: 0
E131: 130 | J131: 0
E132: 131 | J132: 0
E133: 132 | J133: 0
E134: 133 | J134: 0
E135: 134 | J135: 0
E136: 135 | J136: 0
E137: 136 | J137: 0
E138: 137 | J138: 0
E139: 138 | J139: 0
E140: 139 | J140: 0
E141: 140 | J141: 0
E142: 141 | J142: 0
E143: 142 | J143: 0
E144: 143 | J144: 0
E145: 144 | J145: 0
E146: 145 | J146: =IF(OR(H146=5,H146=10, H146=15, H146="BP",H146="SCR"),"NT",I146) -> 0
E147: 146 | J147: 0
E148: 147 | J148: 0
E149: 148 | J149: 0
E150: 149 | J150: 0
E151: 150 | J151: 0
E152: 151 | J152: 0
E153: 152 | J153: 0
E154: 153 | J154: 0
E155: 154 | J155: 0
E156: 155 | J156: 0
E157: 156 | J157: 0
E158: 157 | J158: 0
E159: 158 | J159: 0
E160: 159 | J160: 0
E161: 160 | J161: 0
E162: 161 | J162: 0
E163: 162 | J163: 0
E164: 163 | J164: 0
E165: 164 | J165: 0
E166: 165 | J166: 0
E167: 166 | J167: 0
E168: 167 | J168: 0
E169: 168 | J169: 0
E170: 169 | J170: 0
E171: 170 | J171: 0
E172: 171 | J172: 0
E173: 172 | J173: 0
E174: 173 | J174: 0
E175: 174 | J175: 0
E176: 175 | J176: 0
E177: 176 | J177: 0
E178: 177 | J178: 0
E179: 178 | J179: 0
E180: 179 | J180: 0
E181: 180 | J181: 0
E182: 181 | J182: 0
E183: 182 | J183: 0
E184: 183 | J184: 0
E185: 184 | J185: 0
E186: 185 | J186: 0
E187: 186 | J187: 0
E188: 187 | J188: 0
E189: 188 | J189: 0
E190: 189 | J190: 0
E191: 190 | J191: 0
E192: 191 | J192: 0
E193: 192 | J193: 0
E194: 193 | J194: 0
E195: 194 | J195: 0
E196: 195 | J196: 0
E197: 196 | J197: 0
E198: 197 | J198: 0
E199: 198 | J199: 0
E200: 199 | J200: 0
... 101 more rows

Sheet Highstakes
A1: Futurity | B1: Der | C1: Age Inct. | D1: BBR | E1: Draw | F1: Rider Name | G1: Horse Name | H1: c/o | I1: Time | J1: Final Time | K1: Placing | L1: Money Earned
E2: 1 | F2: Lisa Nicholas | G2: Stoli My Guy | I2: 15.788 | K2: 1st | L2: 480
E3: 2 | F3: Skyler Nicholas | G3: Perrywater Dash | I3: 15.925 | K3: 2nd | L3: 320
E4: 3 | F4: Molli Montgomery | G4: Kindafeelinheavenly | I4: 15.953
E5: 4 | F5: Tiany Schuster | G5: Tuecoseix | I5: 15.957
E6: 5 | F6: Tyler Rivette | G6: Streakinflingindisco | I6: 15.987
E7: 6 | F7: Pete Oen | G7: God Given Fame | I7: 16.125
E8: 7 | F8: Leslie Richards | G8: Bullys Getting Down | I8: 16.15
E9: 8 | F9: Tiany Schuster | G9: Showmance | I9: 16.261
E10: 9 | F10: Tiany Schuster | G10: Streakin Money Red | I10: 16.379
E11: 10 | F11: Andrea Cline | G11: Blurry Bug Leo | I11: nt16.403
E12: 11
E13: 12
E14: 13
E15: 14
E16: 15
E17: 16
E18: 17
E19: 18
E20: 19
E21: 20
E22: 21
E23: 22
E24: 23
E25: 24
E26: 25
E27: 26
E28: 27
E29: 28
E30: 29
E31: 30
E32: 31
E33: 32
E34: 33
E35: 34
E36: 35
E37: 36
E38: 37
E39: 38
E40: 39 | J40: =IF(OR(H40=5,H40=10, H40=15, H40="BP",H40="SCR"),"NT",I40) -> 0
E41: 40 | J41: 0
E42: 41 | J42: 0
E43: 42 | J43: 0
E44: 43 | J44: 0
E45: 44 | J45: 0
E46: 45 | J46: 0
E47: 46 | J47: 0
E48: 47 | J48: 0
E49: 48 | J49: 0
E50: 49 | J50: 0
E51: 50 | J51: 0
E52: 51 | J52: 0
E53: 52 | J53: 0
E54: 53 | J54: 0
E55: 54 | J55: 0
E56: 55 | J56: 0
E57: 56 | J57: 0
E58: 57 | J58: 0
E59: 58 | J59: 0
E60: 59 | J60: 0
E61: 60 | J61: 0
E62: 61 | J62: 0
E63: 62 | J63: 0
E64: 63 | J64: 0
E65: 64 | J65: 0
E66: 65 | J66: 0
E67: 66 | J67: 0
E68: 67 | J68: 0
E69: 68 | J69: 0
E70: 69 | J70: 0
E71: 70 | J71: 0
E72: 71 | J72: 0
E73: 72 | J73: 0
E74: 73 | J74: 0
E75: 74 | J75: 0
E76: 75 | J76: 0
E77: 76 | J77: 0
E78: 77 | J78: 0
E79: 78 | J79: 0
E80: 79 | J80: 0
E81: 80 | J81: 0
E82: 81 | J82: 0
E83: 82 | J83: 0
E84: 83 | J84: 0
E85: 84 | J85: 0
E86: 85 | J86: 0
E87: 86 | J87: 0
E88: 87 | J88: 0
E89: 88 | J89: 0
E90: 89 | J90: 0
E91: 90 | J91: 0
E92: 91 | J92: 0
E93: 92 | J93: 0
E94: 93 | J94: 0
E95: 94 | J95: 0
E96: 95 | J96: 0
E97: 96 | J97: 0
E98: 97 | J98: 0
E99: 98 | J99: 0
E100: 99 | J100: 0
E101: 100 | J101: 0
E102: 101 | J102: 0
E103: 102 | J103: 0
E104: 103 | J104: =IF(OR(H104=5,H104=10, H104=15, H104="BP",H104="SCR"),"NT",I104) -> 0
E105: 104 | J105: 0
E106: 105 | J106: 0
E107: 106 | J107: 0
E108: 107 | J108: 0
E109: 108 | J109: 0
E110: 109 | J110: 0
E111: 110 | J111: 0
E112: 111 | J112: 0
E113: 112 | J113: 0
E114: 113 | J114: 0
E115: 114 | J115: 0
E116: 115 | J116: 0
E117: 116 | J117: 0
E118: 117 | J118: 0
E119: 118 | J119: 0
E120: 119 | J120: 0
E121: 120 | J121: 0
E122: 121 | J122: 0
E123: 122 | J123: 0
E124: 123 | J124: 0
E125: 124 | J125: 0
E126: 125 | J126: 0
E127: 126 | J127: 0
E128: 127 | J128: 0
E129: 128 | J129: 0
E130: 129 | J130: 0
E131: 130 | J131: 0
E132: 131 | J132: 0
E133: 132 | J133: 0
E134: 133 | J134: 0
E135: 134 | J135: 0
E136: 135 | J136: 0
E137: 136 | J137: 0
E138: 137 | J138: 0
E139: 138 | J139: 0
E140: 139 | J140: 0
E141: 140 | J141: 0
E142: 141 | J142: 0
E143: 142 | J143: 0
E144: 143 | J144: 0
E145: 144 | J145: 0
E146: 145 | J146: 0
E147: 146 | J147: 0
E148: 147 | J148: 0
E149: 148 | J149: 0
E150: 149 | J150: 0
E151: 150 | J151: 0
E152: 151 | J152: 0
E153: 152 | J153: 0
E154: 153 | J154: 0
E155: 154 | J155: 0
E156: 155 | J156: 0
E157: 156 | J157: 0
E158: 157 | J158: 0
E159: 158 | J159: 0
E160: 159 | J160: 0
E161: 160 | J161: 0
E162: 161 | J162: 0
E163: 162 | J163: 0
E164: 163 | J164: 0
E165: 164 | J165: 0
E166: 165 | J166: 0
E167: 166 | J167: 0
E168: 167 | J168: =IF(OR(H168=5,H168=10, H168=15, H168="BP",H168="SCR"),"NT",I168) -> 0
E169: 168 | J169: 0
E170: 169 | J170: 0
E171: 170 | J171: 0
E172: 171 | J172: 0
E173: 172 | J173: 0
E174: 173 | J174: 0
E175: 174 | J175: 0
E176: 175 | J176: 0
E177: 176 | J177: 0
E178: 177 | J178: 0
E179: 178 | J179: 0
E180: 179 | J180: 0
E181: 180 | J181: 0
E182: 181 | J182: 0
E183: 182 | J183: 0
E184: 183 | J184: 0
E185: 184 | J185: 0
E186: 185 | J186: 0
E187: 186 | J187: 0
E188: 187 | J188: 0
E189: 188 | J189: 0
E190: 189 | J190: 0
E191: 190 | J191: 0
E192: 191 | J192: 0
E193: 192 | J193: 0
E194: 193 | J194: 0
E195: 194 | J195: 0
E196: 195 | J196: 0
E197: 196 | J197: 0
E198: 197 | J198: 0
E199: 198 | J199: 0
E200: 199 | J200: 0
... 101 more rows

Sheet Senior
A1: Futurity | B1: Der | C1: Age Inct. | D1: BBR | E1: Draw | F1: Rider Name | G1: Horse Name | H1: Pen | I1: Time | J1: Final Time | K1: Placing | L1: Money Earned
E2: 1 | F2: Sherri Barnes | G2: Famous Little Jet | I2: 15.894 | K2: 1D 1st | L2: 140
E3: 2 | F3: Sherri Barnes | G3: Racing For Perks | I3: 15.96
E4: 3 | F4: Martha Smith | G4: Firewatermakemehappy | I4: 16.13
E5: 4 | F5: Terry Quintana | G5: Rappin Ole Tom | I5: 16.191
E6: 5 | F6: Glenda Barnett | G6: Opey | I6: 16.434 | K6: 2D 1st | L6: 120
E7: 6 | F7: Jana Kurosky | G7: Winnies Red Kai | I7: 16.46
E8: 7 | F8: Jolene Jones | G8: Streakin Louie | I8: 16.561
E9: 8 | F9: Jana Kurosky | G9: TCS Rare Man M Fol | I9: 16.589
E10: 9 | F10: Mary Carter | G10: Bullys Tiger Eye | I10: 16.625
E11: 10 | F11: Bo Hill | G11: Lacey Lady Bugs | I11: 16.651
E12: 11 | F12: Martha Smith | G12: My Epic Moment | I12: 16.665
E13: 12 | F13: Lisa Wernli | G13: Babe on The Run | I13: 16.686
E14: 13 | F14: Mary Carter | G14: Bully Bully Fame | I14: 16.809
E15: 14 | F15: Dee Dee Jordan | G15: Lil Yella Draw | I15: 16.921 | K15: 3D 1st | L15: 80
E16: 15 | F16: Dee Dee Jordan | G16: Fame Flingin Rebel | I16: 17.157
E17: 16 | F17: Carolyn Stoy | G17: Lil Miss Tenseltown | I17: 17.43 | K17: 4D 1st | L17: 60
E18: 17 | F18: Glenda Barnett | G18: Bo | I18: nt
E19: 18 | F19: Lisa Wernli | G19: Proudtobefrench | I19: nt16.597
E20: 19 | F20: Dee Dee Jordan | G20: PC Twice Ta Fame | I20: nt17.828
E21: 20 | F21: Leann Younger | G21: Easy | I21: nt17.850
E22: 21
E23: 22
E24: 23
E25: 25
E26: 26
E27: 27
E28: 28
E29: 29
E30: 30
E31: 31
E32: 32
E33: 24
E34: 33
E35: 34
E36: 35
E37: 36
E38: 37
E39: 38
E40: 39
E41: 40
E42: 41 | J42: =IF(OR(H42=5,H42=10, H42=15, H42="BP",H42="SCR"),"NT",I42) -> 0
E43: 42 | J43: 0
E44: 43 | J44: 0
E45: 44 | J45: 0
E46: 45 | J46: 0
E47: 46 | J47: 0
E48: 47 | J48: 0
E49: 48 | J49: 0
E50: 49 | J50: 0
E51: 50 | J51: 0
E52: 51 | J52: 0
E53: 52 | J53: 0
E54: 53 | J54: 0
E55: 54 | J55: 0
E56: 55 | J56: 0
E57: 56 | J57: 0
E58: 57 | J58: 0
E59: 58 | J59: 0
E60: 59 | J60: 0
E61: 60 | J61: 0
E62: 61 | J62: 0
E63: 62 | J63: 0
E64: 63 | J64: 0
E65: 64 | J65: 0
E66: 65 | J66: 0
E67: 66 | J67: 0
E68: 67 | J68: 0
E69: 68 | J69: 0
E70: 69 | J70: 0
E71: 70 | J71: 0
E72: 71 | J72: 0
E73: 72 | J73: 0
E74: 73 | J74: 0
E75: 74 | J75: 0
E76: 75 | J76: 0
E77: 76 | J77: 0
E78: 77 | J78: 0
E79: 78 | J79: 0
E80: 79 | J80: 0
E81: 80 | J81: 0
E82: 81 | J82: 0
E83: 82 | J83: 0
E84: 83 | J84: 0
E85: 84 | J85: 0
E86: 85 | J86: 0
E87: 86 | J87: 0
E88: 87 | J88: 0
E89: 88 | J89: 0
E90: 89 | J90: 0
E91: 90 | J91: 0
E92: 91 | J92: 0
E93: 92 | J93: 0
E94: 93 | J94: 0
E95: 94 | J95: 0
E96: 95 | J96: 0
E97: 96 | J97: 0
E98: 97 | J98: 0
E99: 98 | J99: 0
E100: 99 | J100: 0
E101: 100 | J101: 0
E102: 101 | J102: 0
E103: 102 | J103: 0
E104: 103 | J104: 0
E105: 104 | J105: 0
E106: 105 | J106: =IF(OR(H106=5,H106=10, H106=15, H106="BP",H106="SCR"),"NT",I106) -> 0
E107: 106 | J107: 0
E108: 107 | J108: 0
E109: 108 | J109: 0
E110: 109 | J110: 0
E111: 110 | J111: 0
E112: 111 | J112: 0
E113: 112 | J113: 0
E114: 113 | J114: 0
E115: 114 | J115: 0
E116: 115 | J116: 0
E117: 116 | J117: 0
E118: 117 | J118: 0
E119: 118 | J119: 0
E120: 119 | J120: 0
E121: 120 | J121: 0
E122: 121 | J122: 0
E123: 122 | J123: 0
E124: 123 | J124: 0
E125: 124 | J125: 0
E126: 125 | J126: 0
E127: 126 | J127: 0
E128: 127 | J128: 0
E129: 128 | J129: 0
E130: 129 | J130: 0
E131: 130 | J131: 0
E132: 131 | J132: 0
E133: 132 | J133: 0
E134: 133 | J134: 0
E135: 134 | J135: 0
E136: 135 | J136: 0
E137: 136 | J137: 0
E138: 137 | J138: 0
E139: 138 | J139: 0
E140: 139 | J140: 0
E141: 140 | J141: 0
E142: 141 | J142: 0
E143: 142 | J143: 0
E144: 143 | J144: 0
E145: 144 | J145: 0
E146: 145 | J146: 0
E147: 146 | J147: 0
E148: 147 | J148: 0
E149: 148 | J149: 0
E150: 149 | J150: 0
E151: 150 | J151: 0
E152: 151 | J152: 0
E153: 152 | J153: 0
E154: 153 | J154: 0
E155: 154 | J155: 0
E156: 155 | J156: 0
E157: 156 | J157: 0
E158: 157 | J158: 0
E159: 158 | J159: 0
E160: 159 | J160: 0
E161: 160 | J161: 0
E162: 161 | J162: 0
E163: 162 | J163: 0
E164: 163 | J164: 0
E165: 164 | J165: 0
E166: 165 | J166: 0
E167: 166 | J167: 0
E168: 167 | J168: 0
E169: 168 | J169: 0
E170: 169 | J170: =IF(OR(H170=5,H170=10, H170=15, H170="BP",H170="SCR"),"NT",I170) -> 0
E171: 170 | J171: 0
E172: 171 | J172: 0
E173: 172 | J173: 0
E174: 173 | J174: 0
E175: 174 | J175: 0
E176: 175 | J176: 0
E177: 176 | J177: 0
E178: 177 | J178: 0
E179: 178 | J179: 0
E180: 179 | J180: 0
E181: 180 | J181: 0
E182: 181 | J182: 0
E183: 182 | J183: 0
E184: 183 | J184: 0
E185: 184 | J185: 0
E186: 185 | J186: 0
E187: 186 | J187: 0
E188: 187 | J188: 0
E189: 188 | J189: 0
E190: 189 | J190: 0
E191: 190 | J191: 0
E192: 191 | J192: 0
E193: 192 | J193: 0
E194: 193 | J194: 0
E195: 194 | J195: 0
E196: 195 | J196: 0
E197: 196 | J197: 0
E198: 197 | J198: 0
E199: 198 | J199: 0
E200: 199 | J200: 0
... 101 more rows

Sheet Futurity
A1: Futurity | B1: Der | C1: Age Inct. | D1: BBR | E1: Draw | F1: Rider Name | G1: Horse Name | H1: c/o | I1: Time | J1: Final Time | K1: Placing | L1: Money Earned
E2: 1 | F2: Kelly Allen | G2: Miss Regality | I2: 15.872 | K2: 1D 1st
E3: 2 | F3: Kelly Allen | G3: Miss JB 165 | I3: 15.956
E4: 3 | F4: Lacey Harmon | G4: Red Ryon Red Ryon | I4: 16.07
E5: 4 | F5: Brittany Pierson | G5: CF Dash N Dirty | I5: 16.273
E6: 5 | F6: Tasha Welsh | G6: Epic Dasher | I6: 16.452
E7: 6 | F7: Pete Oen | G7: Seis N Frost | I7: 16.472
E8: 7 | F8: Tasha Welsh | G8: JRT SadiesFrostyshoes | I8: 16.487
E9: 8 | F9: Krista Whitley | G9: Fabulace Fame | I9: 16.564
E10: 9 | F10: Tiany Schuster | G10: SRD Angels Fury | I10: 16.61
E11: 10 | F11: Tasha Welsh | G11: Guys Yellow Rose | I11: 16.65
E12: 11 | F12: Bo Hill | G12: Lacey Lady Bugs | I12: 16.651
E13: 12 | F13: Jennifer Burgess | G13: SO Im A Famous Guy | I13: 16.676
E14: 13 | F14: Tasha Welsh | G14: SR Epic Wildcatter | I14: 16.73
E15: 14 | F15: Brittany Pierson | G15: Guyko | I15: 16.749
E16: 15 | F16: Joy Wargo | G16: Happy Last Fame | I16: 16.833
E17: 16 | F17: Billie Ann Harmon | G17: Me Flingin Diamonds | I17: 16.861
E18: 17 | F18: DeAnn Morgan | G18: Paid For A Fling | I18: 17.054 | K18: 2D 1st
E19: 18 | F19: Suade Furr | G19: Dashin French Socks | I19: 17.114
E20: 19 | F20: Billie Ann Harmon | G20: Bug On Firewater | I20: 17.215
E21: 20 | F21: Tori Volk | G21: CN Holy Cow | I21: 17.287
E22: 21 | F22: Jennifer Burgess | G22: Whata Annie Oakley | I22: 17.299
E23: 22 | F23: Kelli Acreman | G23: DK Buggin On Fame | I23: 17.407
E24: 23 | F24: Carolyn Stoy | G24: Lil Miss Tenseltown | I24: 17.43
E25: 24 | F25: Billie Ann Harmon | G25: Seis French Kysses | I25: 17.589
E26: 25 | F26: Tiffany Durham | G26: RR Lil Red Wagon | I26: 17.613
E27: 26 | F27: Shelby Stansbury | G27: KC MoonshinoverRocs | I27: 17.927
E28: 27 | F28: Geneva Kelly | G28: Kick Some Dust Up | I28: 18.142
E29: 28 | F29: Tiffany Durham | G29: Dashin Luke Perry | I29: 18.805
E30: 29 | F30: Jennifer Burgess | G30: Frosted Vagabond | I30: 19.497
E31: 30 | F31: Courtney Moose | G31: HQH Runaway Toast | I31: 19.88
E32: 31 | F32: Wyatt Paul | G32: Hurricane Harvey | I32: nt16.531
E33: 32 | F33: Wyatt Paul | G33: Flashin Anne | I33: nt16.567
E34: 33 | F34: Joy Wargo | G34: MV Gonna Be Famous | I34: nt16.614
E35: 34 | F35: Pete Oen | G35: One TO Wish For | I35: nt16.659
E36: 35 | F36: Joy Wargo | G36: No More Mr Night Sky | I36: nt20.012
E37: 36 | F37: McKenna Hickson | G37: MP Lead Me To Hay | I37: scratch
E38: 37
E39: 38
E40: 39
E41: 40
E42: 41
E43: 42
E44: 43
E45: 44
E46: 45
E47: 46
E48: 47
E49: 48
E50: 49
E51: 50
E52: 51
E53: 52
E54: 53
E55: 54
E56: 55
E57: 56
E58: 57
E59: 58
E60: 59
E61: 60
E62: 61
E63: 62
E64: 63
E65: 64
E66: 65
E67: 66
E68: 67
E69: 68
E70: 69
E71: 70
E72: 71
E73: 72
E74: 73
E75: 74
E76: 75
E77: 76 | J77: =IF(OR(H77=5,H77=10, H77=15, H77="BP",H77="SCR"),"NT",I77) -> 0
E78: 77 | J78: 0
E79: 78 | J79: 0
E80: 79 | J80: 0
E81: 80 | J81: 0
E82: 81 | J82: 0
E83: 82 | J83: 0
E84: 83 | J84: 0
E85: 84 | J85: 0
E86: 85 | J86: 0
E87: 86 | J87: 0
E88: 87 | J88: 0
E89: 88 | J89: 0
E90: 89 | J90: 0
E91: 90 | J91: 0
E92: 91 | J92: 0
E93: 92 | J93: 0
E94: 93 | J94: 0
E95: 94 | J95: 0
E96: 95 | J96: =IF(OR(H96=5,H96=10, H96=15, H96="BP",H96="SCR"),"NT",I96) -> 0
E97: 96 | J97: 0
E98: 97 | J98: 0
E99: 98 | J99: 0
E100: 99 | J100: 0
E101: 100 | J101: 0
E102: 101 | J102: 0
E103: 102 | J103: 0
E104: 103 | J104: 0
E105: 104 | J105: 0
E106: 105 | J106: 0
E107: 106 | J107: 0
E108: 107 | J108: 0
E109: 108 | J109: 0
E110: 109 | J110: 0
E111: 110 | J111: 0
E112: 111 | J112: 0
E113: 112 | J113: 0
E114: 113 | J114: 0
E115: 114 | J115: 0
E116: 115 | J116: 0
E117: 116 | J117: 0
E118: 117 | J118: 0
E119: 118 | J119: 0
E120: 119 | J120: 0
E121: 120 | J121: 0
E122: 121 | J122: 0
E123: 122 | J123: 0
E124: 123 | J124: 0
E125: 124 | J125: 0
E126: 125 | J126: 0
E127: 126 | J127: 0
E128: 127 | J128: 0
E129: 128 | J129: 0
E130: 129 | J130: 0
E131: 130 | J131: 0
E132: 131 | J132: 0
E133: 132 | J133: 0
E134: 133 | J134: 0
E135: 134 | J135: 0
E136: 135 | J136: 0
E137: 136 | J137: 0
E138: 137 | J138: 0
E139: 138 | J139: 0
E140: 139 | J140: 0
E141: 140 | J141: 0
E142: 141 | J142: 0
E143: 142 | J143: 0
E144: 143 | J144: 0
E145: 144 | J145: 0
E146: 145 | J146: 0
E147: 146 | J147: 0
E148: 147 | J148: 0
E149: 148 | J149: 0
E150: 149 | J150: 0
E151: 150 | J151: 0
E152: 151 | J152: 0
E153: 152 | J153: 0
E154: 153 | J154: 0
E155: 154 | J155: 0
E156: 155 | J156: 0
E157: 156 | J157: 0
E158: 157 | J158: 0
E159: 158 | J159: 0
E160: 159 | J160: =IF(OR(H160=5,H160=10, H160=15, H160="BP",H160="SCR"),"NT",I160) -> 0
E161: 160 | J161: 0
E162: 161 | J162: 0
E163: 162 | J163: 0
E164: 163 | J164: 0
E165: 164 | J165: 0
E166: 165 | J166: 0
E167: 166 | J167: 0
E168: 167 | J168: 0
E169: 168 | J169: 0
E170: 169 | J170: 0
E171: 170 | J171: 0
E172: 171 | J172: 0
E173: 172 | J173: 0
E174: 173 | J174: 0
E175: 174 | J175: 0
E176: 175 | J176: 0
E177: 176 | J177: 0
E178: 177 | J178: 0
E179: 178 | J179: 0
E180: 179 | J180: 0
E181: 180 | J181: 0
E182: 181 | J182: 0
E183: 182 | J183: 0
E184: 183 | J184: 0
E185: 184 | J185: 0
E186: 185 | J186: 0
E187: 186 | J187: 0
E188: 187 | J188: 0
E189: 188 | J189: 0
E190: 189 | J190: 0
E191: 190 | J191: 0
E192: 191 | J192: 0
E193: 192 | J193: 0
E194: 193 | J194: 0
E195: 194 | J195: 0
E196: 195 | J196: 0
E197: 196 | J197: 0
E198: 197 | J198: 0
E199: 198 | J199: 0
E200: 199 | J200: 0
... 101 more rows

Sheet 12 & Under (hidden)
A1: Futurity | B1: Der | C1: Age Inct. | D1: R/O | E1: Draw | F1: Rider Name | G1: Horse Name | H1: Time | I1: Final Time | J1: Placing | K1: Money Earned
E33: 32
E34: 33
E35: 34
E36: 35
E37: 36
E38: 37
E39: 38
E40: 39
E41: 40
E42: 41
E43: 42
E44: 43
E45: 44
E46: 45
E47: 46
E48: 47
E49: 48
E50: 49
E51: 50
E52: 51
E53: 52
E54: 53
E55: 54
E56: 55
E57: 56
E58: 57
E59: 58
E60: 59
E61: 60
E62: 61
E63: 62
E64: 63
E65: 64
E66: 65
E67: 66
E68: 67
E69: 68
E70: 69
E71: 70
E72: 71
E73: 72
E74: 73
E75: 74
E76: 75
E77: 76
E78: 77
E79: 78
E80: 79
E81: 80
E82: 81
E83: 82
E84: 83
E85: 84
E86: 85
E87: 86
E88: 87
E89: 88
E90: 89
E91: 90
E92: 91
E93: 92
E94: 93
E95: 94
E96: 95
E97: 96
E98: 97
E99: 98
E100: 99
E101: 100
E102: 101
E103: 102
E104: 103
E105: 104
E106: 105
E107: 106
E108: 107
E109: 108
E110: 109
E111: 110
E112: 111
E113: 112
E114: 113
E115: 114
E116: 115
E117: 116
E118: 117
E119: 118
E120: 119
E121: 120
E122: 121
E123: 122
E124: 123
E125: 124
E126: 125
E127: 126
E128: 127
E129: 128
E130: 129
E131: 130
E132: 131
E133: 132
E134: 133
E135: 134
E136: 135
E137: 136
E138: 137
E139: 138
E140: 139
E141: 140
E142: 141
E143: 142
E144: 143
E145: 144
E146: 145
E147: 146
E148: 147
E149: 148
E150: 149
E151: 150
E152: 151
E153: 152
E154: 153
E155: 154
E156: 155
E157: 156
E158: 157
E159: 158
E160: 159
E161: 160
E162: 161
E163: 162
E164: 163
E165: 164
E166: 165
E167: 166
E168: 167
E169: 168
E170: 169
E171: 170
E172: 171
E173: 172
E174: 173
E175: 174
E176: 175
E177: 176
E178: 177
E179: 178
E180: 179
E181: 180
E182: 181
E183: 182
E184: 183
E185: 184
E186: 185
E187: 186
E188: 187
E189: 188
E190: 189
E191: 190
E192: 191
E193: 192
E194: 193
E195: 194
E196: 195
E197: 196
E198: 197
E199: 198
E200: 199
E201: 200
E202: 201
E203: 202
E204: 203
E205: 204
E206: 205
E207: 206
E208: 207
E209: 208
E210: 209
E211: 210
E212: 211
E213: 212
E214: 213
E215: 214
E216: 215
E217: 216
E218: 217
E219: 218
E220: 219
E221: 220
E222: 221
E223: 222
E224: 223
E225: 224
E226: 225
E227: 226
E228: 227
E229: 228
E230: 229
E231: 230
... 70 more rows

Sheet 10&under
A1: Draw | B1: Rider Name | C1: Horse Name | D1: Pen | E1: Time | F1: Final Time | G1: Placing | H1: Money Earned
A2: 13 | B2: Wimberlee Elliott | E2: 17.176
A3: 8 | B3: Hayva Hawkins | C3: Rocket | D3: OPEN ROLLOVER | E3: 17.198
A4: 11 | B4: Walter Wolf | C4: Texas | E4: 17.34
A5: 5 | B5: Jaidyn Ornelas | C5: Awards First | D5: OPEN ROLLOVER | E5: 17.444
A6: 9 | B6: Collynz Sanders | C6: Elsa | E6: 17.517
A7: 14 | B7: Knoxlee Elliott | E7: 17.658
A8: 4 | B8: Maclaine Degroot | C8: Aggies Honeymoon | E8: 18.84
A9: 6 | B9: Kimber Steffen | E9: 19.192
A10: 2 | B10: Savannah Peterson | C10: Doc | E10: 19.331
A11: 1 | B11: Chaney Akin | C11: Sunny | E11: 19.398
A12: 10 | B12: Chaney Akin | C12: Stella | E12: 23.89
A13: 3 | B13: Kennedy Syr | E13: 30.507
A14: 7 | B14: Kaley Steffen | C14: Dolly Jo | E14: 37.067
A15: 15 | B15: Oaklee Elliott | E15: 65.174 | F15: =IF(OR(D15=5,D15=10, D15=15, D15="BP",D15="SCR"),"NT",E15) -> 65.174
A16: 12 | B16: Josey Teague | C16: Chico | E16: broken
A17: 16 | F17: =IF(OR(D17=5,D17=10, D17=15, D17="BP",D17="SCR"),"NT",E17) -> 0
A18: 17 | F18: 0
A19: 18 | F19: 0
A20: 19 | F20: 0
A21: 20 | F21: 0
A22: 21 | F22: 0
A23: 22 | F23: 0
A24: 23 | F24: 0

Sheet Average
A1: Parker County Arena
A2: Open
A3: 4 Yr Fut | B3: 5 Yr Fut | C3: Der | D3: Age Inct. | E3: Am | F3: Carry | G3: T/C | H3: F/F | I3: Mem | J3: Nom | K3: Av | L3: BBR | M3: WPRA | N3: Draw | O3: Owner Name | P3: Rider Name | Q3: Horse Name | R3: Pen | S3: Time 1 | T3: Final Time 1 | U3: Pen | V3: Time 2 | W3: Final Time 2 | X3: Total Time | Y3: Average Time | Z3: Placing | AA3: Money Earned | AC3: D Placing | AE3: Split
N4: 1 | T4: =IF(OR(R4=5,R4=10, R4=15, R4="BP",R4="SCR"),"NT",S4) -> 0 | W4: =IF(OR(U4=5,U4=10, U4=15, U4="BP",U4="SCR"),"NT",V4) -> 0 | X4: =(T4+W4) -> 0 | Y4: =(T4+W4)/2 -> 0 | AC4: 1D
N5: 2 | T5: 0 | W5: 0 | X5: 0 | Y5: 0 | AC5: 2D | AD5: =$AD$4+$AE$5 -> 0.5 | AE5: 0.5
N6: 3 | T6: 0 | W6: 0 | X6: 0 | Y6: 0 | AC6: 3D | AD6: =$AD$5+$AE$6 -> 1 | AE6: 0.5
N7: 4 | T7: 0 | W7: 0 | X7: 0 | Y7: 0 | AC7: 4D | AD7: =$AD$6+$AE$7 -> 1.5 | AE7: 0.5
N8: 5 | T8: 0 | W8: 0 | X8: 0 | Y8: 0 | AC8: 5D | AD8: =$AD$7+$AE$8 -> 2 | AE8: 0.5
N9: 6 | T9: 0 | W9: 0 | X9: 0 | Y9: 0
N10: 7 | T10: 0 | W10: 0 | X10: 0 | Y10: 0 | AC10: # Entered
N11: 8 | T11: 0 | W11: 0 | X11: 0 | Y11: 0 | AC11: =COUNTA(P4:P503) -> 0
N12: 9 | T12: 0 | W12: 0 | X12: 0 | Y12: 0
N13: 10 | T13: 0 | W13: 0 | X13: 0 | Y13: 0
N14: 11 | T14: 0 | W14: 0 | X14: 0 | Y14: 0
N15: 12 | T15: 0 | W15: 0 | X15: 0 | Y15: 0
N16: 13 | T16: 0 | W16: 0 | X16: 0 | Y16: 0
N17: 14 | T17: =IF(OR(R17=5,R17=10, R17=15, R17="BP",R17="SCR"),"NT",S17) -> 0 | W17: =IF(OR(U17=5,U17=10, U17=15, U17="BP",U17="SCR"),"NT",V17) -> 0 | X17: =(T17+W17) -> 0 | Y17: =(T17+W17)/2 -> 0
N18: 15 | T18: 0 | W18: 0 | X18: 0 | Y18: 0
N19: 16 | T19: 0 | W19: 0 | X19: 0 | Y19: 0
N20: 17 | T20: 0 | W20: 0 | X20: 0 | Y20: 0
N21: 18 | T21: 0 | W21: 0 | X21: 0 | Y21: 0
N22: 19 | T22: 0 | W22: 0 | X22: 0 | Y22: 0
N23: 20 | T23: 0 | W23: 0 | X23: 0 | Y23: 0
N24: 21 | T24: 0 | W24: 0 | X24: 0 | Y24: 0
N25: 22 | T25: 0 | W25: 0 | X25: 0 | Y25: 0
N26: 23 | T26: 0 | W26: 0 | X26: 0 | Y26: 0
N27: 24 | T27: 0 | W27: 0 | X27: 0 | Y27: 0
N28: 25 | T28: 0 | W28: 0 | X28: 0 | Y28: 0
N29: 26 | T29: 0 | W29: 0 | X29: 0 | Y29: 0
N30: 27 | T30: 0 | W30: 0 | X30: 0 | Y30: 0
N31: 28 | T31: 0 | W31: 0 | X31: 0 | Y31: 0
N32: 29 | T32: 0 | W32: 0 | X32: 0 | Y32: 0
N33: 30 | T33: 0 | W33: 0 | X33: 0 | Y33: 0
N34: 31 | T34: 0 | W34: 0 | X34: 0 | Y34: 0
N35: 32 | T35: 0 | W35: 0 | X35: 0 | Y35: 0
N36: 33 | T36: 0 | W36: 0 | X36: 0 | Y36: 0
N37: 34 | T37: 0 | W37: 0 | X37: 0 | Y37: 0
N38: 35 | T38: 0 | W38: 0 | X38: 0 | Y38: 0
N39: 36 | T39: 0 | W39: 0 | X39: 0 | Y39: 0
N40: 37 | T40: 0 | W40: 0 | X40: 0 | Y40: 0
N41: 38 | T41: 0 | W41: 0 | X41: 0 | Y41: 0
N42: 39 | T42: 0 | W42: 0 | X42: 0 | Y42: 0
N43: 40 | T43: 0 | W43: 0 | X43: 0 | Y43: 0
N44: 41 | T44: 0 | W44: 0 | X44: 0 | Y44: 0
N45: 42 | T45: 0 | W45: 0 | X45: 0 | Y45: 0
N46: 43 | T46: 0 | W46: 0 | X46: 0 | Y46: 0
N47: 44 | T47: 0 | W47: 0 | X47: 0 | Y47: 0
N48: 45 | T48: 0 | W48: 0 | X48: 0 | Y48: 0
N49: 46 | T49: 0 | W49: 0 | X49: 0 | Y49: 0
N50: 47 | T50: 0 | W50: 0 | X50: 0 | Y50: 0
N51: 48 | T51: 0 | W51: 0 | X51: 0 | Y51: 0
N52: 49 | T52: 0 | W52: 0 | X52: 0 | Y52: 0
N53: 50 | T53: 0 | W53: 0 | X53: 0 | Y53: 0
N54: 51 | T54: 0 | W54: 0 | X54: 0 | Y54: 0
N55: 52 | T55: 0 | W55: 0 | X55: 0 | Y55: 0
N56: 53 | T56: 0 | W56: 0 | X56: 0 | Y56: 0
N57: 54 | T57: 0 | W57: 0 | X57: 0 | Y57: 0
N58: 55 | T58: 0 | W58: 0 | X58: 0 | Y58: 0
N59: 56 | T59: 0 | W59: 0 | X59: 0 | Y59: 0
N60: 57 | T60: 0 | W60: 0 | X60: 0 | Y60: 0
N61: 58 | T61: 0 | W61: 0 | X61: 0 | Y61: 0
N62: 59 | T62: 0 | W62: 0 | X62: 0 | Y62: 0
N63: 60 | T63: 0 | W63: 0 | X63: 0 | Y63: 0
N64: 61 | T64: 0 | W64: 0 | X64: 0 | Y64: 0
N65: 62 | T65: 0 | W65: 0 | X65: 0 | Y65: 0
N66: 63 | T66: 0 | W66: 0 | X66: 0 | Y66: 0
N67: 64 | T67: 0 | W67: 0 | X67: 0 | Y67: 0
N68: 65 | T68: 0 | W68: 0 | X68: 0 | Y68: 0
N69: 66 | T69: =IF(OR(R69=5,R69=10, R69=15, R69="BP",R69="SCR"),"NT",S69) -> 0 | W69: =IF(OR(U69=5,U69=10, U69=15, U69="BP",U69="SCR"),"NT",V69) -> 0 | X69: =(T69+W69) -> 0 | Y69: =(T69+W69)/2 -> 0
N70: 67 | T70: 0 | W70: 0 | X70: 0 | Y70: 0
N71: 68 | T71: 0 | W71: 0 | X71: 0 | Y71: 0
N72: 69 | T72: 0 | W72: 0 | X72: 0 | Y72: 0
N73: 70 | T73: 0 | W73: 0 | X73: 0 | Y73: 0
N74: 71 | T74: 0 | W74: 0 | X74: 0 | Y74: 0
N75: 72 | T75: 0 | W75: 0 | X75: 0 | Y75: 0
N76: 73 | T76: 0 | W76: 0 | X76: 0 | Y76: 0
N77: 74 | T77: 0 | W77: 0 | X77: 0 | Y77: 0
N78: 75 | T78: 0 | W78: 0 | X78: 0 | Y78: 0
N79: 76 | T79: 0 | W79: 0 | X79: 0 | Y79: 0
N80: 77 | T80: 0 | W80: 0 | X80: 0 | Y80: 0
N81: 78 | T81: 0 | W81: 0 | X81: 0 | Y81: 0
N82: 79 | T82: 0 | W82: 0 | X82: 0 | Y82: 0
N83: 80 | T83: 0 | W83: 0 | X83: 0 | Y83: 0
N84: 81 | T84: 0 | W84: 0 | X84: 0 | Y84: 0
N85: 82 | T85: 0 | W85: 0 | X85: 0 | Y85: 0
N86: 83 | T86: 0 | W86: 0 | X86: 0 | Y86: 0
N87: 84 | T87: 0 | W87: 0 | X87: 0 | Y87: 0
N88: 85 | T88: 0 | W88: 0 | X88: 0 | Y88: 0
N89: 86 | T89: 0 | W89: 0 | X89: 0 | Y89: 0
N90: 87 | T90: 0 | W90: 0 | X90: 0 | Y90: 0
N91: 88 | T91: 0 | W91: 0 | X91: 0 | Y91: 0
N92: 89 | T92: 0 | W92: 0 | X92: 0 | Y92: 0
N93: 90 | T93: 0 | W93: 0 | X93: 0 | Y93: 0
N94: 91 | T94: 0 | W94: 0 | X94: 0 | Y94: 0
N95: 92 | T95: 0 | W95: 0 | X95: 0 | Y95: 0
N96: 93 | T96: 0 | W96: 0 | X96: 0 | Y96: 0
N97: 94 | T97: 0 | W97: 0 | X97: 0 | Y97: 0
N98: 95 | T98: 0 | W98: 0 | X98: 0 | Y98: 0
N99: 96 | T99: 0 | W99: 0 | X99: 0 | Y99: 0
N100: 97 | T100: 0 | W100: 0 | X100: 0 | Y100: 0
N101: 98 | T101: 0 | W101: 0 | X101: 0 | Y101: 0
N102: 99 | T102: 0 | W102: 0 | X102: 0 | Y102: 0
N103: 100 | T103: 0 | W103: 0 | X103: 0 | Y103: 0
N104: 101 | T104: 0 | W104: 0 | X104: 0 | Y104: 0
N105: 102 | T105: 0 | W105: 0 | X105: 0 | Y105: 0
N106: 103 | T106: 0 | W106: 0 | X106: 0 | Y106: 0
N107: 104 | T107: 0 | W107: 0 | X107: 0 | Y107: 0
N108: 105 | T108: 0 | W108: 0 | X108: 0 | Y108: 0
N109: 106 | T109: 0 | W109: 0 | X109: 0 | Y109: 0
N110: 107 | T110: 0 | W110: 0 | X110: 0 | Y110: 0
N111: 108 | T111: 0 | W111: 0 | X111: 0 | Y111: 0
N112: 109 | T112: 0 | W112: 0 | X112: 0 | Y112: 0
N113: 110 | T113: 0 | W113: 0 | X113: 0 | Y113: 0
N114: 111 | T114: 0 | W114: 0 | X114: 0 | Y114: 0
N115: 112 | T115: 0 | W115: 0 | X115: 0 | Y115: 0
N116: 113 | T116: 0 | W116: 0 | X116: 0 | Y116: 0
N117: 114 | T117: 0 | W117: 0 | X117: 0 | Y117: 0
N118: 115 | T118: 0 | W118: 0 | X118: 0 | Y118: 0
N119: 116 | T119: 0 | W119: 0 | X119: 0 | Y119: 0
N120: 117 | T120: 0 | W120: 0 | X120: 0 | Y120: 0
N121: 118 | T121: 0 | W121: 0 | X121: 0 | Y121: 0
N122: 119 | T122: 0 | W122: 0 | X122: 0 | Y122: 0
N123: 120 | T123: 0 | W123: 0 | X123: 0 | Y123: 0
N124: 121 | T124: 0 | W124: 0 | X124: 0 | Y124: 0
N125: 122 | T125: 0 | W125: 0 | X125: 0 | Y125: 0
N126: 123 | T126: 0 | W126: 0 | X126: 0 | Y126: 0
N127: 124 | T127: 0 | W127: 0 | X127: 0 | Y127: 0
N128: 125 | T128: 0 | W128: 0 | X128: 0 | Y128: 0
N129: 126 | T129: 0 | W129: 0 | X129: 0 | Y129: 0
N130: 127 | T130: 0 | W130: 0 | X130: 0 | Y130: 0
N131: 128 | T131: 0 | W131: 0 | X131: 0 | Y131: 0
N132: 129 | T132: 0 | W132: 0 | X132: 0 | Y132: 0
N133: 130 | T133: =IF(OR(R133=5,R133=10, R133=15, R133="BP",R133="SCR"),"NT",S133) -> 0 | W133: =IF(OR(U133=5,U133=10, U133=15, U133="BP",U133="SCR"),"NT",V133) -> 0 | X133: =(T133+W133) -> 0 | Y133: =(T133+W133)/2 -> 0
N134: 131 | T134: 0 | W134: 0 | X134: 0 | Y134: 0
N135: 132 | T135: 0 | W135: 0 | X135: 0 | Y135: 0
N136: 133 | T136: 0 | W136: 0 | X136: 0 | Y136: 0
N137: 134 | T137: 0 | W137: 0 | X137: 0 | Y137: 0
N138: 135 | T138: 0 | W138: 0 | X138: 0 | Y138: 0
N139: 136 | T139: 0 | W139: 0 | X139: 0 | Y139: 0
N140: 137 | T140: 0 | W140: 0 | X140: 0 | Y140: 0
N141: 138 | T141: 0 | W141: 0 | X141: 0 | Y141: 0
N142: 139 | T142: 0 | W142: 0 | X142: 0 | Y142: 0
N143: 140 | T143: 0 | W143: 0 | X143: 0 | Y143: 0
N144: 141 | T144: 0 | W144: 0 | X144: 0 | Y144: 0
N145: 142 | T145: 0 | W145: 0 | X145: 0 | Y145: 0
N146: 143 | T146: 0 | W146: 0 | X146: 0 | Y146: 0
N147: 144 | T147: 0 | W147: 0 | X147: 0 | Y147: 0
N148: 145 | T148: 0 | W148: 0 | X148: 0 | Y148: 0
N149: 146 | T149: 0 | W149: 0 | X149: 0 | Y149: 0
N150: 147 | T150: 0 | W150: 0 | X150: 0 | Y150: 0
N151: 148 | T151: 0 | W151: 0 | X151: 0 | Y151: 0
N152: 149 | T152: 0 | W152: 0 | X152: 0 | Y152: 0
N153: 150 | T153: 0 | W153: 0 | X153: 0 | Y153: 0
N154: 151 | T154: 0 | W154: 0 | X154: 0 | Y154: 0
N155: 152 | T155: 0 | W155: 0 | X155: 0 | Y155: 0
N156: 153 | T156: 0 | W156: 0 | X156: 0 | Y156: 0
N157: 154 | T157: 0 | W157: 0 | X157: 0 | Y157: 0
N158: 155 | T158: 0 | W158: 0 | X158: 0 | Y158: 0
N159: 156 | T159: 0 | W159: 0 | X159: 0 | Y159: 0
N160: 157 | T160: 0 | W160: 0 | X160: 0 | Y160: 0
N161: 158 | T161: 0 | W161: 0 | X161: 0 | Y161: 0
N162: 159 | T162: 0 | W162: 0 | X162: 0 | Y162: 0
N163: 160 | T163: 0 | W163: 0 | X163: 0 | Y163: 0
N164: 161 | T164: 0 | W164: 0 | X164: 0 | Y164: 0
N165: 162 | T165: 0 | W165: 0 | X165: 0 | Y165: 0
N166: 163 | T166: 0 | W166: 0 | X166: 0 | Y166: 0
N167: 164 | T167: 0 | W167: 0 | X167: 0 | Y167: 0
N168: 165 | T168: 0 | W168: 0 | X168: 0 | Y168: 0
N169: 166 | T169: 0 | W169: 0 | X169: 0 | Y169: 0
N170: 167 | T170: 0 | W170: 0 | X170: 0 | Y170: 0
N171: 168 | T171: 0 | W171: 0 | X171: 0 | Y171: 0
N172: 169 | T172: 0 | W172: 0 | X172: 0 | Y172: 0
N173: 170 | T173: 0 | W173: 0 | X173: 0 | Y173: 0
N174: 171 | T174: 0 | W174: 0 | X174: 0 | Y174: 0
N175: 172 | T175: 0 | W175: 0 | X175: 0 | Y175: 0
N176: 173 | T176: 0 | W176: 0 | X176: 0 | Y176: 0
N177: 174 | T177: 0 | W177: 0 | X177: 0 | Y177: 0
N178: 175 | T178: 0 | W178: 0 | X178: 0 | Y178: 0
N179: 176 | T179: 0 | W179: 0 | X179: 0 | Y179: 0
N180: 177 | T180: 0 | W180: 0 | X180: 0 | Y180: 0
N181: 178 | T181: 0 | W181: 0 | X181: 0 | Y181: 0
N182: 179 | T182: 0 | W182: 0 | X182: 0 | Y182: 0
N183: 180 | T183: 0 | W183: 0 | X183: 0 | Y183: 0
N184: 181 | T184: 0 | W184: 0 | X184: 0 | Y184: 0
N185: 182 | T185: 0 | W185: 0 | X185: 0 | Y185: 0
N186: 183 | T186: 0 | W186: 0 | X186: 0 | Y186: 0
N187: 184 | T187: 0 | W187: 0 | X187: 0 | Y187: 0
N188: 185 | T188: 0 | W188: 0 | X188: 0 | Y188: 0
N189: 186 | T189: 0 | W189: 0 | X189: 0 | Y189: 0
N190: 187 | T190: 0 | W190: 0 | X190: 0 | Y190: 0
N191: 188 | T191: 0 | W191: 0 | X191: 0 | Y191: 0
N192: 189 | T192: 0 | W192: 0 | X192: 0 | Y192: 0
N193: 190 | T193: 0 | W193: 0 | X193: 0 | Y193: 0
N194: 191 | T194: 0 | W194: 0 | X194: 0 | Y194: 0
N195: 192 | T195: 0 | W195: 0 | X195: 0 | Y195: 0
N196: 193 | T196: 0 | W196: 0 | X196: 0 | Y196: 0
N197: 194 | T197: =IF(OR(R197=5,R197=10, R197=15, R197="BP",R197="SCR"),"NT",S197) -> 0 | W197: =IF(OR(U197=5,U197=10, U197=15, U197="BP",U197="SCR"),"NT",V197) -> 0 | X197: =(T197+W197) -> 0 | Y197: =(T197+W197)/2 -> 0
N198: 195 | T198: 0 | W198: 0 | X198: 0 | Y198: 0
N199: 196 | T199: 0 | W199: 0 | X199: 0 | Y199: 0
N200: 197 | T200: 0 | W200: 0 | X200: 0 | Y200: 0
... 303 more rows

Sheet BFA 2D Payout (hidden)
A1: BFA 2D Payout
A2: Entry Fee | B2: # Entries | C2: % Payback | D2: Added $ | E2: Total Payout | F2: Each Go
A3: 25 | B3: 19 | C3: 0.8 | D3: 200 | E3: =(A3*$C$3)*B3+D3 -> 580 | F3: 0.3
F4: =$E$3*$F$3 -> 174
A5: $5,000-7,500 Pays 5 Places 4 to 1D 1 to 2D
A6: Placings | B6: 1D | D6: 2D
A7: 1st | B7: =($F$4*$C$7) -> 57.42 | C7: 0.33 | D7: =$F$4*$E$7 -> 12.18 | E7: 0.07
A8: 2nd | B8: =$F$4*$C$8 -> 46.98 | C8: 0.27
A9: 3rd | B9: =$F$4*$C$9 -> 34.8 | C9: 0.2
A10: 4th | B10: =$F$4*$C$10 -> 22.62 | C10: 0.13
A11: Totals | B11: =SUM(B7:B10) -> 161.82 | D11: =SUM(D7:D10) -> 12.18 | E11: =(C7+C8+C9+C10+E7+E8) -> 1
A12: =B11+D11 -> 174
A13: $7,501 - 10,000 Pays 6 Places 4 to 1D, 2 to 2D
A14: Placings | B14: 1D | D14: 2D
A15: 1st | B15: =$F$4*$C$15 -> 50.46 | C15: 0.29 | D15: =$F$4*$E$15 -> 15.66 | E15: 0.09
A16: 2nd | B16: =+$F$4*$C$16 -> 41.76 | C16: 0.24 | D16: =F4*E16 -> 8.7 | E16: 0.05
A17: 3rd | B17: =$F$4*$C$17 -> 33.06 | C17: 0.19
A18: 4th | B18: =$F$4*$C$18 -> 24.36 | C18: 0.14
A19: Totals | B19: =SUM(B15:B18) -> 149.64 | D19: =D16+D15 -> 24.36 | E19: =SUM(C15+C16+C17+C18+E15+E16) -> 1
A20: =D19+B19 -> 174
A21: $10,001 - $15,000 Payes 8 Places 5 to 1D, 3 to 2D
A22: Placings | B22: 1D | D22: 2D
A23: 1st | B23: =F4*C23 -> 41.76 | C23: 0.24 | D23: =F4*E23 -> 12.18 | E23: 0.07
A24: 2nd | B24: =F4*C24 -> 34.8 | C24: 0.2 | D24: =F4*E24 -> 8.7 | E24: 0.05
A25: 3rd | B25: =F4*C25 -> 29.58 | C25: 0.17 | D25: =F4*E25 -> 6.96 | E25: 0.04
A26: 4th | B26: =F4*C26 -> 22.62 | C26: 0.13
A27: 5th | B27: =F4*C27 -> 17.4 | C27: 0.1
A28: Totals | B28: =SUM(B23:B27) -> 146.16 | D28: =SUM(D23:D27) -> 27.84 | E28: =C23+C24+C25+C26+C27+E23+E24+E25 -> 1
A29: =B28+D28 -> 174
A30: $15,001 - $25,000 Payes 11 Places 7 to 1D, 4 to 2D
A31: Placings | B31: 1D | D31: 2D
A32: 1st | B32: =$F$4*C32 -> 36.54 | C32: 0.21 | D32: =$F$4*E32 -> 8.7 | E32: 0.05
A33: 2nd | B33: =$F$4*C33 -> 31.32 | C33: 0.18 | D33: =$F$4*E33 -> 6.96 | E33: 0.04
A34: 3rd | B34: 26.1 | C34: 0.15 | D34: =$F$4*E34 -> 5.22 | E34: 0.03
A35: 4th | B35: 19.14 | C35: 0.11 | D35: =$F$4*E35 -> 3.48 | E35: 0.02
A36: 5th | B36: 13.92 | C36: 0.08
A37: 6th | B37: 12.18 | C37: 0.07
A38: 7th | B38: 10.44 | C38: 0.06
A39: Totals | B39: =SUM(B32:B38) -> 149.64 | D39: =SUM(D32:D38) -> 24.36 | E39: =C32+C33+C34+C35+C36+C37+C38+E32+E33+E34+E35 -> 1
A40: =SUM(B39+D39) -> 174
A41: $25,001 - $35,000 Payes 12 Places 8 to 1D, 4 to 2D
A42: Placings | B42: 1D | D42: 2D
A43: 1st | B43: =$F$4*C43 -> 33.06 | C43: 0.19 | D43: =$F$4*E43 -> 8.7 | E43: 0.05
A44: 2nd | B44: =$F$4*C44 -> 26.1 | C44: 0.15 | D44: =$F$4*E44 -> 6.96 | E44: 0.04
A45: 3rd | B45: 20.88 | C45: 0.12 | D45: =$F$4*E45 -> 5.22 | E45: 0.03
A46: 4th | B46: 17.4 | C46: 0.1 | D46: =$F$4*E46 -> 3.48 | E46: 0.02
A47: 5th | B47: 15.66 | C47: 0.09
A48: 6th | B48: 13.92 | C48: 0.08
A49: 7th | B49: 12.18 | C49: 0.07
A50: 8th | B50: 10.44 | C50: 0.06
A51: Totals | B51: =SUM(B43:B50) -> 149.64 | D51: =SUM(D43:D46) -> 24.36 | E51: =C43+C44+C45+C46+C47+C48+C49+C50+E43+E44+E45+E46 -> 1
A52: =D51+B51 -> 174

Sheet 2D Payout
A1: 2D Payout
A2: Entry Fee | B2: # Entries | C2: % Payback | D2: Added $ | E2: Total Payout
A3: 100 | B3: 10 | C3: 0.8 | E3: =(A3*$C$3)*B3+D3 -> 800
A5: % in each D | B5: 0.6 | C5: 0.4 | D5: Total % = | E5: =SUM(B5:C5) -> 1
B6: 1D | C6: 40
B7: =(($A$3*$B$3*$C$3*$B$5)+($D$3*$B$5)) -> 480 | C7: =(($A$3*$B$3*$C$3*$C$5)+($D$3*$C$5)) -> 320
A8: Totals | B8: =SUM(B7) -> 480 | C8: =SUM(C7) -> 320 | D8: =SUM(B8:C8) -> 800
A10: For 1-7 riders 1 place
A11: Placings | B11: 1D | C11: 2D
A12: 1st | B12: =$B$7*$E$12 -> 480 | C12: =$C$7*$E$5 -> 320 | D12: è | E12: 1
A13: Totals | B13: =SUM(B12:B12) -> 480 | C13: =SUM(C12:C12) -> 320 | D13: =SUM(B13:C13) -> 800 | E13: =SUM(E12) -> 1
A15: For 8-11 riders 2 places
A16: Placings | B16: 1D | C16: 2D
A17: 1st | B17: =$B$7*$E$17 -> 288 | C17: =$C$7*$E$17 -> 192 | D17: è | E17: 0.6
A18: 2nd | B18: =$B$7*$E$18 -> 192 | C18: =$C$7*$E$18 -> 128 | D18: è | E18: 0.4
A19: Totals | B19: =SUM(B17:B18) -> 480 | C19: =SUM(C17:C18) -> 320 | D19: =SUM(B19:C19) -> 800 | E19: =SUM(E17:E18) -> 1
A21: For 12-15 riders 3 places
A22: Placings | B22: 1D | C22: 2D
A23: 1st | B23: =$B$7*$E$23 -> 240 | C23: =$C$7*$E$23 -> 160 | D23: è | E23: 0.5
A24: 2nd | B24: =$B$7*$E$24 -> 144 | C24: =$C$7*$E$24 -> 96 | D24: è | E24: 0.3
A25: 3rd | B25: =$B$7*$E$25 -> 96 | C25: =$C$7*$E$25 -> 64 | D25: è | E25: 0.2
A26: Totals | B26: =SUM(B23:B25) -> 480 | C26: =SUM(C23:C25) -> 320 | D26: =SUM(B26:C26) -> 800 | E26: =SUM(E23:E25) -> 1
A28: For 16-19 riders 4 places
A29: Placings | B29: 1D | C29: 2D
A30: 1st | B30: =$B$7*$E$30 -> 192 | C30: =$C$7*$E$30 -> 128 | D30: è | E30: 0.4
A31: 2nd | B31: =$B$7*$E$31 -> 144 | C31: =$C$7*$E$31 -> 96 | D31: è | E31: 0.3
A32: 3rd | B32: =$B$7*$E$32 -> 96 | C32: =$C$7*$E$32 -> 64 | D32: è | E32: 0.2
A33: 4th | B33: =$B$7*$E$33 -> 48 | C33: =$C$7*$E$33 -> 32 | D33: è | E33: 0.1
A34: Totals | B34: =SUM(B30:B33) -> 480 | C34: =SUM(C30:C33) -> 320 | D34: =SUM(B34:C34) -> 800 | E34: =SUM(E30:E33) -> 1
A36: For 20-23 riders 5 places
A37: Placings | B37: 1D | C37: 2D
A38: 1st | B38: =$B$7*$E$38 -> 144 | C38: =$C$7*$E$38 -> 96 | D38: è | E38: 0.3
A39: 2nd | B39: =$B$7*$E$39 -> 120 | C39: =$C$7*$E$39 -> 80 | D39: è | E39: 0.25
A40: 3rd | B40: =$B$7*$E$40 -> 96 | C40: =$C$7*$E$40 -> 64 | D40: è | E40: 0.2
A41: 4th | B41: =$B$7*$E$41 -> 72 | C41: =$C$7*$E$41 -> 48 | D41: è | E41: 0.15
A42: 5th | B42: =$B$7*$E$42 -> 48 | C42: =$C$7*$E$42 -> 32 | D42: è | E42: 0.1
A43: Totals | B43: =SUM(B38:B42) -> 480 | C43: =SUM(C38:C42) -> 320 | D43: =SUM(B43:C43) -> 800 | E43: =SUM(E38:E42) -> 1
A45: For 24-27 riders 6 places
A46: Placings | B46: 1D | C46: 2D
A47: 1st | B47: =$B$7*$E$47 -> 120 | C47: =$C$7*$E$47 -> 80 | D47: è | E47: 0.25
A48: 2nd | B48: =$B$7*$E$48 -> 96 | C48: =$C$7*$E$48 -> 64 | D48: è | E48: 0.2
A49: 3rd | B49: =$B$7*$E$49 -> 86.4 | C49: =$C$7*$E$49 -> 57.6 | D49: è | E49: 0.18
A50: 4th | B50: =$B$7*$E$50 -> 72 | C50: =$C$7*$E$50 -> 48 | D50: è | E50: 0.15
A51: 5th | B51: =$B$7*$E$51 -> 57.6 | C51: =$C$7*$E$51 -> 38.4 | D51: è | E51: 0.12
A52: 6th | B52: =$B$7*$E$52 -> 48 | C52: =$C$7*$E$52 -> 32 | D52: è | E52: 0.1
A53: Totals | B53: =SUM(B47:B52) -> 480 | C53: =SUM(C47:C52) -> 320 | D53: =SUM(B53:C53) -> 800 | E53: =SUM(E47:E52) -> 1
A55: For 28-31 riders 7 places
A56: Placings | B56: 1D | C56: 2D
A57: 1st | B57: =$B$7*$E$57 -> 105.6 | C57: =$C$7*$E$57 -> 70.4 | D57: è | E57: 0.22
A58: 2nd | B58: =$B$7*$E$58 -> 86.4 | C58: =$C$7*$E$58 -> 57.6 | D58: è | E58: 0.18
A59: 3rd | B59: =$B$7*$E$59 -> 76.8 | C59: =$C$7*$E$59 -> 51.2 | D59: è | E59: 0.16
A60: 4th | B60: =$B$7*$E$60 -> 67.2 | C60: =$C$7*$E$60 -> 44.8 | D60: è | E60: 0.14
A61: 5th | B61: =$B$7*$E$61 -> 57.6 | C61: =$C$7*$E$61 -> 38.4 | D61: è | E61: 0.12
A62: 6th | B62: =$B$7*$E$62 -> 48 | C62: =$C$7*$E$62 -> 32 | D62: è | E62: 0.1
A63: 7th | B63: =$B$7*$E$63 -> 38.4 | C63: =$C$7*$E$63 -> 25.6 | D63: è | E63: 0.08
A64: Totals | B64: =SUM(B57:B63) -> 480 | C64: =SUM(C57:C63) -> 320 | D64: =SUM(B64:C64) -> 800 | E64: =SUM(E57:E63) -> 1
A66: For 32 or more riders 8 places
A67: Placings | B67: 1D | C67: 2D
A68: 1st | B68: =$B$7*$E$68 -> 110.4 | C68: =$C$7*$E$68 -> 73.6 | D68: è | E68: 0.23
A69: 2nd | B69: =$B$7*$E$69 -> 96 | C69: =$C$7*$E$69 -> 64 | D69: è | E69: 0.2
A70: 3rd | B70: =$B$7*$E$70 -> 81.6 | C70: =$C$7*$E$70 -> 54.4 | D70: è | E70: 0.17
A71: 4th | B71: =$B$7*$E$71 -> 67.2 | C71: =$C$7*$E$71 -> 44.8 | D71: è | E71: 0.14
A72: 5th | B72: =$B$7*$E$72 -> 52.8 | C72: =$C$7*$E$72 -> 35.2 | D72: è | E72: 0.11
A73: 6th | B73: =$B$7*$E$73 -> 38.4 | C73: =$C$7*$E$73 -> 25.6 | D73: è | E73: 0.08
A74: 7th | B74: =$B$7*$E$74 -> 24 | C74: =$C$7*$E$74 -> 16 | D74: è | E74: 0.05
A75: 8th | B75: =$B$7*$E$75 -> 9.6 | C75: =$C$7*$E$75 -> 6.4 | D75: è | E75: 0.02
A76: Totals | B76: =SUM(B68:B75) -> 480 | C76: =SUM(C68:C75) -> 320 | D76: =SUM(B76:C76) -> 800 | E76: =SUM(E68:E75) -> 1

Sheet 3D Payout (hidden)
A1: 3D Payout
A2: Entry Fee | B2: # Entries | C2: % Payback | D2: $ From Entry | E2: Added $ | F2: Total Payout
A3: 10 | B3: 3 | C3: 0.8 | D3: =$A$3*$C$3*$B$3 -> 24 | F3: =$D$3+$E$3 -> 24
A5: % in each D | B5: 0.5 | C5: 0.3 | D5: 0.2 | E5: Total % = | F5: =SUM(B5:D5) -> 1
B6: 1D | C6: 2D | D6: 3D
B7: =(($A$3*$B$3*$C$3*$B$5)+($E$3*$B$5)) -> 12 | C7: =(($A$3*$B$3*$C$3*$C$5)+($E$3*$C$5)) -> 7.2 | D7: =(($A$3*$B$3*$C$3*$D$5)+($E$3*$D$5)) -> 4.8
A8: Totals | B8: =SUM(B7) -> 12 | C8: =SUM(C7) -> 7.2 | D8: =SUM(D7) -> 4.8 | E8: =SUM(B8:D8) -> 24
A10: For 1-10 riders 1 place
A11: Placings | B11: 1D | C11: 2D | D11: 3D
A12: 1st | B12: =$B$7*$F$12 -> 12 | C12: =$C$7*$F$12 -> 7.2 | D12: =$D$7*$F$12 -> 4.8 | E12: è | F12: 1
A13: Totals | B13: =SUM(B12:B12) -> 12 | C13: =SUM(C12:C12) -> 7.2 | D13: =SUM(D12:D12) -> 4.8 | E13: =SUM(B13:D13) -> 24 | F13: =SUM(F12) -> 1
A15: For 11-15 riders 2 places
A16: Placings | B16: 1D | C16: 2D | D16: 3D
A17: 1st | B17: =$B$7*$F$17 -> 7.2 | C17: =$C$7*$F$17 -> 4.32 | D17: =$D$7*$F$17 -> 2.88 | E17: è | F17: 0.6
A18: 2nd | B18: =$B$7*$F$18 -> 4.8 | C18: =$C$7*$F$18 -> 2.88 | D18: =$D$7*$F$18 -> 1.92 | E18: è | F18: 0.4
A19: Totals | B19: =SUM(B17:B18) -> 12 | C19: =SUM(C17:C18) -> 7.2 | D19: =SUM(D17:D18) -> 4.8 | E19: =SUM(B19:D19) -> 24 | F19: =SUM(F17:F18) -> 1
A21: For 16-30 riders 3 places
A22: Placings | B22: 1D | C22: 2D | D22: 3D
A23: 1st | B23: =$B$7*$F$23 -> 6 | C23: =$C$7*$F$23 -> 3.6 | D23: =$D$7*$F$23 -> 2.4 | E23: è | F23: 0.5
A24: 2nd | B24: =$B$7*$F$24 -> 3.6 | C24: =$C$7*$F$24 -> 2.16 | D24: =$D$7*$F$24 -> 1.44 | E24: è | F24: 0.3
A25: 3rd | B25: =$B$7*$F$25 -> 2.4 | C25: =$C$7*$F$25 -> 1.44 | D25: =$D$7*$F$25 -> 0.96 | E25: è | F25: 0.2
A26: Totals | B26: =SUM(B23:B25) -> 12 | C26: =SUM(C23:C25) -> 7.2 | D26: =SUM(D22:D25) -> 4.8 | E26: =SUM(B26:D26) -> 24 | F26: =SUM(F23:F25) -> 1
A28: For 31-60 riders 4 places
A29: Placings | B29: 1D | C29: 2D | D29: 3D
A30: 1st | B30: =$B$7*$F$30 -> 5.04 | C30: =$C$7*$F$30 -> 3.024 | D30: =$D$7*$F$30 -> 2.016 | E30: è | F30: 0.42
A31: 2nd | B31: =$B$7*$F$31 -> 3.48 | C31: =$C$7*$F$31 -> 2.088 | D31: =$D$7*$F$31 -> 1.392 | E31: è | F31: 0.29
A32: 3rd | B32: =$B$7*$F$32 -> 2.28 | C32: =$C$7*$F$32 -> 1.368 | D32: =$D$7*$F$32 -> 0.912 | E32: è | F32: 0.19
A33: 4th | B33: =$B$7*$F$33 -> 1.2 | C33: =$C$7*$F$33 -> 0.72 | D33: =$D$7*$F$33 -> 0.48 | E33: è | F33: 0.1
A34: Totals | B34: =SUM(B30:B33) -> 12 | C34: =SUM(C30:C33) -> 7.2 | D34: =SUM(D30:D33) -> 4.8 | E34: =SUM(B34:D34) -> 24 | F34: =SUM(F30:F33) -> 1
A36: For 61-90 riders 5 places
A37: Placings | B37: 1D | C37: 2D | D37: 3D
A38: 1st | B38: =$B$7*$F$38 -> 4.56 | C38: =$C$7*$F$38 -> 2.736 | D38: =$D$7*$F$38 -> 1.824 | E38: è | F38: 0.38
A39: 2nd | B39: =$B$7*$F$39 -> 3.36 | C39: =$C$7*$F$39 -> 2.016 | D39: =$D$7*$F$39 -> 1.344 | E39: è | F39: 0.28
A40: 3rd | B40: =$B$7*$F$40 -> 2.16 | C40: =$C$7*$F$40 -> 1.296 | D40: =$D$7*$F$40 -> 0.864 | E40: è | F40: 0.18
A41: 4th | B41: =$B$7*$F$41 -> 1.2 | C41: =$C$7*$F$41 -> 0.72 | D41: =$D$7*$F$41 -> 0.48 | E41: è | F41: 0.1
A42: 5th | B42: =$B$7*$F$42 -> 0.72 | C42: =$C$7*$F$42 -> 0.432 | D42: =$D$7*$F$42 -> 0.288 | E42: è | F42: 0.06
A43: Totals | B43: =SUM(B38:B42) -> 12 | C43: =SUM(C38:C42) -> 7.2 | D43: =SUM(D38:D42) -> 4.8 | E43: =SUM(B43:D43) -> 24 | F43: =SUM(F38:F42) -> 1
A45: For 91-120 riders 6 places
A46: Placings | B46: 1D | C46: 2D | D46: 3D
A47: 1st | B47: =$B$7*$F$47 -> 4.32 | C47: =$C$7*$F$47 -> 2.592 | D47: =$D$7*$F$47 -> 1.728 | E47: è | F47: 0.36
A48: 2nd | B48: =$B$7*$F$48 -> 3.12 | C48: =$C$7*$F$48 -> 1.872 | D48: =$D$7*$F$48 -> 1.248 | E48: è | F48: 0.26
A49: 3rd | B49: =$B$7*$F$49 -> 1.92 | C49: =$C$7*$F$49 -> 1.152 | D49: =$D$7*$F$49 -> 0.768 | E49: è | F49: 0.16
A50: 4th | B50: =$B$7*$F$50 -> 1.2 | C50: =$C$7*$F$50 -> 0.72 | D50: =$D$7*$F$50 -> 0.48 | E50: è | F50: 0.1
A51: 5th | B51: =$B$7*$F$51 -> 0.84 | C51: =$C$7*$F$51 -> 0.504 | D51: =$D$7*$F$51 -> 0.336 | E51: è | F51: 0.07
A52: 6th | B52: =$B$7*$F$52 -> 0.6 | C52: =$C$7*$F$52 -> 0.36 | D52: =$D$7*$F$52 -> 0.24 | E52: è | F52: 0.05
A53: Totals | B53: =SUM(B47:B52) -> 12 | C53: =SUM(C47:C52) -> 7.2 | D53: =SUM(D47:D52) -> 4.8 | E53: =SUM(B53:D53) -> 24 | F53: =SUM(F47:F52) -> 1
A55: For 121-200 riders 7 places
A56: Placings | B56: 1D | C56: 2D | D56: 3D
A57: 1st | B57: =$B$7*$F$57 -> 3.12 | C57: =$C$7*$F$57 -> 1.872 | D57: =$D$7*$F$57 -> 1.248 | E57: è | F57: 0.26
A58: 2nd | B58: =$B$7*$F$58 -> 2.4 | C58: =$C$7*$F$58 -> 1.44 | D58: =$D$7*$F$58 -> 0.96 | E58: è | F58: 0.2
A59: 3rd | B59: =$B$7*$F$59 -> 1.8 | C59: =$C$7*$F$59 -> 1.08 | D59: =$D$7*$F$59 -> 0.72 | E59: è | F59: 0.15
A60: 4th | B60: =$B$7*$F$60 -> 1.44 | C60: =$C$7*$F$60 -> 0.864 | D60: =$D$7*$F$60 -> 0.576 | E60: è | F60: 0.12
A61: 5th | B61: =$B$7*$F$61 -> 1.2 | C61: =$C$7*$F$61 -> 0.72 | D61: =$D$7*$F$61 -> 0.48 | E61: è | F61: 0.1
A62: 6th | B62: =$B$7*$F$62 -> 1.08 | C62: =$C$7*$F$62 -> 0.648 | D62: =$D$7*$F$62 -> 0.432 | E62: è | F62: 0.09
A63: 7th | B63: =$B$7*$F$63 -> 0.96 | C63: =$C$7*$F$63 -> 0.576 | D63: =$D$7*$F$63 -> 0.384 | E63: è | F63: 0.08
A64: Totals | B64: =SUM(B57:B63) -> 12 | C64: =SUM(C57:C63) -> 7.2 | D64: =SUM(D57:D63) -> 4.8 | E64: =SUM(B64:D64) -> 24 | F64: =SUM(F57:F63) -> 1
A66: For 201 or more riders 8 places
A67: Placings | B67: 1D | C67: 2D | D67: 3D
A68: 1st | B68: =$B$7*0.24 -> 2.88 | C68: =$C$7*0.24 -> 1.728 | D68: =$D$7*0.24 -> 1.152 | E68: è | F68: 0.24
A69: 2nd | B69: =$B$7*0.18 -> 2.16 | C69: =$C$7*0.18 -> 1.296 | D69: =$D$7*0.18 -> 0.864 | E69: è | F69: 0.18
A70: 3rd | B70: =$B$7*0.15 -> 1.8 | C70: =$C$7*0.15 -> 1.08 | D70: =$D$7*0.15 -> 0.72 | E70: è | F70: 0.15
A71: 4th | B71: =$B$7*0.12 -> 1.44 | C71: =$C$7*0.12 -> 0.864 | D71: =$D$7*0.12 -> 0.576 | E71: è | F71: 0.12
A72: 5th | B72: =$B$7*0.1 -> 1.2 | C72: =$C$7*0.1 -> 0.72 | D72: =$D$7*0.1 -> 0.48 | E72: è | F72: 0.1
A73: 6th | B73: =$B$7*0.08 -> 0.96 | C73: =$C$7*0.08 -> 0.576 | D73: =$D$7*0.08 -> 0.384 | E73: è | F73: 0.08
A74: 7th | B74: =$B$7*0.07 -> 0.84 | C74: =$C$7*0.07 -> 0.504 | D74: =$D$7*0.07 -> 0.336 | E74: è | F74: 0.07
A75: 8th | B75: =$B$7*0.06 -> 0.72 | C75: =$C$7*0.06 -> 0.432 | D75: =$D$7*0.06 -> 0.288 | E75: è | F75: 0.06
A76: Totals | B76: =SUM(B68:B75) -> 12 | C76: =SUM(C68:C75) -> 7.2 | D76: =SUM(D68:D75) -> 4.8 | E76: =SUM(B76:D76) -> 24 | F76: =SUM(F68:F75) -> 1

Sheet 4D Payout BBR (hidden)
A1: 4D Payout BBR
A2: Entry Fee | B2: # Entries | C2: % Payback | D2: $ From Entry | E2: Added $ | F2: Total Payout
A3: 40 | B3: 200 | C3: 0.8 | D3: =$A$3*$C$3*$B$3 -> 6400 | E3: 1100 | F3: =($A$3*$C$3)*$B$3+$E$3 -> 7500
A5: % in each D | B5: 0.35 | C5: 0.3 | D5: 0.2 | E5: 0.15 | F5: Total % Payout | G5: =SUM(B5:E5) -> 1
B6: 1D | C6: 2D | D6: 3D | E6: 4D
B7: =(($A$3*$B$3*$C$3*0.35)+($E$3/4)) -> 2515 | C7: =(($A$3*$B$3*$C$3*0.3)+($E$3/4)) -> 2195 | D7: =(($A$3*$B$3*$C$3*0.2)+($E$3/4)) -> 1555 | E7: =(($A$3*$B$3*$C$3*0.15)+($E$3/4)) -> 1235
A8: Totals | B8: =SUM(B7) -> 2515 | C8: =SUM(C7) -> 2195 | D8: =SUM(D7) -> 1555 | E8: =SUM(E7) -> 1235 | F8: =SUM(B8:E8) -> 7500
A10: For 1-16 riders 1 place
A11: Placings | B11: 1D | C11: 2D | D11: 3D | E11: 4D
A12: 1st | B12: =$B$7*$G$12 -> 2515 | C12: =$C$7*$G$12 -> 2195 | D12: =$D$7*$G$12 -> 1555 | E12: =$E$7*$G$12 -> 1235 | F12: è | G12: 1
A13: Totals | B13: =SUM(B12:B12) -> 2515 | C13: =SUM(C12:C12) -> 2195 | D13: =SUM(D12:D12) -> 1555 | E13: =SUM(E12:E12) -> 1235 | F13: =SUM(B13:E13) -> 7500 | G13: =SUM(G12) -> 1
A15: For 17-33 riders 2 places
A16: Placings | B16: 1D | C16: 2D | D16: 3D | E16: 4D
A17: 1st | B17: =$B$7*$G$17 -> 1509 | C17: =$C$7*$G$17 -> 1317 | D17: =$D$7*$G$17 -> 933 | E17: =$E$7*$G$17 -> 741 | F17: è | G17: 0.6
A18: 2nd | B18: =$B$7*$G$18 -> 1006 | C18: =$C$7*$G$18 -> 878 | D18: =$D$7*$G$18 -> 622 | E18: =$E$7*$G$18 -> 494 | F18: è | G18: 0.4
A19: Totals | B19: =SUM(B17:B18) -> 2515 | C19: =SUM(C17:C18) -> 2195 | D19: =SUM(D17:D18) -> 1555 | E19: =SUM(E17:E18) -> 1235 | F19: =SUM(B19:E19) -> 7500 | G19: =SUM(G17:G18) -> 1
A21: For 34-66 riders 3 places
A22: Placings | B22: 1D | C22: 2D | D22: 3D | E22: 4D
A23: 1st | B23: =$B$7*$G$23 -> 1257.5 | C23: =$C$7*$G$23 -> 1097.5 | D23: =$D$7*$G$23 -> 777.5 | E23: =$E$7*$G$23 -> 617.5 | F23: è | G23: 0.5
A24: 2nd | B24: =$B$7*$G$24 -> 754.5 | C24: =$C$7*$G$24 -> 658.5 | D24: =$D$7*$G$24 -> 466.5 | E24: =$E$7*$G$24 -> 370.5 | F24: è | G24: 0.3
A25: 3rd | B25: =$B$7*$G$25 -> 503 | C25: =$C$7*$G$25 -> 439 | D25: =$D$7*$G$25 -> 311 | E25: =$E$7*$G$25 -> 247 | F25: è | G25: 0.2
A26: Totals | B26: =SUM(B23:B25) -> 2515 | C26: =SUM(C23:C25) -> 2195 | D26: =SUM(D23:D25) -> 1555 | E26: =SUM(E23:E25) -> 1235 | F26: =SUM(B26:E26) -> 7500 | G26: =SUM(G23:G25) -> 1
A28: For 97-95 riders 4 places
A29: Placings | B29: 1D | C29: 2D | D29: 3D | E29: 4D
A30: 1st | B30: =$B$7*$G$30 -> 1006 | C30: =$C$7*$G$30 -> 878 | D30: =$D$7*$G$30 -> 622 | E30: =$E$7*$G$30 -> 494 | F30: è | G30: 0.4
A31: 2nd | B31: =$B$7*$G$31 -> 754.5 | C31: =$C$7*$G$31 -> 658.5 | D31: =$D$7*$G$31 -> 466.5 | E31: =$E$7*$G$31 -> 370.5 | F31: è | G31: 0.3
A32: 3rd | B32: =$B$7*$G$32 -> 503 | C32: =$C$7*$G$32 -> 439 | D32: =$D$7*$G$32 -> 311 | E32: =$E$7*$G$32 -> 247 | F32: è | G32: 0.2
A33: 4th | B33: =$B$7*$G$33 -> 251.5 | C33: =$C$7*$G$33 -> 219.5 | D33: =$D$7*$G$33 -> 155.5 | E33: =$E$7*$G$33 -> 123.5 | F33: è | G33: 0.1
A34: Totals | B34: =SUM(B30:B33) -> 2515 | C34: =SUM(C30:C33) -> 2195 | D34: =SUM(D30:D33) -> 1555 | E34: =SUM(E30:E33) -> 1235 | F34: =SUM(B34:E34) -> 7500 | G34: =SUM(G30:G33) -> 1
A36: For 96-133 riders 5 places
A37: Placings | B37: 1D | C37: 2D | D37: 3D | E37: 4D
A38: 1st | B38: =$B$7*$G$38 -> 829.95 | C38: =$C$7*$G$38 -> 724.35 | D38: =$D$7*G38 -> 513.15 | E38: =$E$7*$G$38 -> 407.55 | F38: è | G38: 0.33
A39: 2nd | B39: =$B$7*$G$39 -> 679.05 | C39: =$C$7*$G$39 -> 592.65 | D39: =$D$7*$G$39 -> 419.85 | E39: =$E$7*$G$39 -> 333.45 | F39: è | G39: 0.27
A40: 3rd | B40: =$B$7*$G$40 -> 503 | C40: =$C$7*$G$40 -> 439 | D40: =$D$7*$G$40 -> 311 | E40: =$E$7*$G$40 -> 247 | F40: è | G40: 0.2
A41: 4th | B41: =$B$7*$G$41 -> 326.95 | C41: =$C$7*$G$41 -> 285.35 | D41: =$D$7*$G$41 -> 202.15 | E41: =$E$7*$G$41 -> 160.55 | F41: è | G41: 0.13
A42: 5th | B42: =$B$7*$G$42 -> 176.05 | C42: =$C$7*$G$42 -> 153.65 | D42: =$D$7*$G$42 -> 108.85 | E42: =$E$7*$G$42 -> 86.45 | F42: è | G42: 0.07
A43: Totals | B43: =SUM(B38:B42) -> 2515 | C43: =SUM(C38:C42) -> 2195 | D43: =SUM(D38:D42) -> 1555 | E43: =SUM(E38:E42) -> 1235 | F43: =SUM(B43:E43) -> 7500 | G43: =SUM(G38:G42) -> 1
A45: For 134-166 riders 6 places
A46: Placings | B46: 1D | C46: 2D | D46: 3D | E46: 4D
A47: 1st | B47: =$B$7*$G$47 -> 729.35 | C47: =$C$7*$G$47 -> 636.55 | D47: =$D$7*$G$47 -> 450.95 | E47: =$E$7*$G$47 -> 358.15 | F47: è | G47: 0.29
A48: 2nd | B48: =$B$7*$G$48 -> 603.6 | C48: =$C$7*$G$48 -> 526.8 | D48: =$D$7*$G$48 -> 373.2 | E48: =$E$7*$G$48 -> 296.4 | F48: è | G48: 0.24
A49: 3rd | B49: =$B$7*$G$49 -> 477.85 | C49: =$C$7*$G$49 -> 417.05 | D49: =$D$7*$G$49 -> 295.45 | E49: =$E$7*$G$49 -> 234.65 | F49: è | G49: 0.19
A50: 4th | B50: =$B$7*$G$50 -> 352.1 | C50: =$C$7*$G$50 -> 307.3 | D50: =$D$7*$G$50 -> 217.7 | E50: =$E$7*$G$50 -> 172.9 | F50: è | G50: 0.14
A51: 5th | B51: =$B$7*$G$51 -> 226.35 | C51: =$C$7*$G$51 -> 197.55 | D51: =$D$7*$G$51 -> 139.95 | E51: =$E$7*$G$51 -> 111.15 | F51: è | G51: 0.09
A52: 6th | B52: =$B$7*$G$52 -> 125.75 | C52: =$C$7*$G$52 -> 109.75 | D52: =$D$7*$G$52 -> 77.75 | E52: =$E$7*$G$52 -> 61.75 | F52: è | G52: 0.05
A53: Totals | B53: =SUM(B47:B52) -> 2515 | C53: =SUM(C47:C52) -> 2195 | D53: =SUM(D47:D52) -> 1555 | E53: =SUM(E47:E52) -> 1235 | F53: =SUM(B53:E53) -> 7500 | G53: =SUM(G47:G52) -> 1
A55: For 167-222 riders 8 places
A56: Placings | B56: 1D | C56: 2D | D56: 3D | E56: 4D
A57: 1st | B57: =$B$7*$G$57 -> 603.6 | C57: =$C$7*$G$57 -> 526.8 | D57: =$D$7*$G$57 -> 373.2 | E57: =$E$7*$G$57 -> 296.4 | F57: è | G57: 0.24
A58: 2nd | B58: =$B$7*$G$58 -> 503 | C58: =$C$7*$G$58 -> 439 | D58: =$D$7*$G$58 -> 311 | E58: =$E$7*$G$58 -> 247 | F58: è | G58: 0.2
A59: 3rd | B59: =$B$7*$G$59 -> 427.55 | C59: =$C$7*$G$59 -> 373.15 | D59: =$D$7*$G$59 -> 264.35 | E59: =$E$7*$G$59 -> 209.95 | F59: è | G59: 0.17
A60: 4th | B60: =$B$7*$G$60 -> 326.95 | C60: =$C$7*$G$60 -> 285.35 | D60: =$D$7*$G$60 -> 202.15 | E60: =$E$7*$G$60 -> 160.55 | F60: è | G60: 0.13
A61: 5th | B61: =$B$7*$G$61 -> 251.5 | C61: =$C$7*$G$61 -> 219.5 | D61: =$D$7*$G$61 -> 155.5 | E61: =$E$7*$G$61 -> 123.5 | F61: è | G61: 0.1
A62: 6th | B62: =$B$7*$G$62 -> 176.05 | C62: =$C$7*$G$62 -> 153.65 | D62: =$D$7*$G$62 -> 108.85 | E62: =$E$7*$G$62 -> 86.45 | F62: è | G62: 0.07
A63: 7th | B63: =$B$7*$G$63 -> 125.75 | C63: =$C$7*$G$63 -> 109.75 | D63: =$D$7*$G$63 -> 77.75 | E63: =$E$7*$G$63 -> 61.75 | F63: è | G63: 0.05
A64: 8th | B64: =$B$7*$G$64 -> 100.6 | C64: =$C$7*$G$64 -> 87.8 | D64: =$D$7*$G$64 -> 62.2 | E64: =$E$7*$G$64 -> 49.4 | F64: è | G64: 0.04
A65: Totals | B65: =SUM(B57:B64) -> 2515 | C65: =SUM(C57:C64) -> 2195 | D65: =SUM(D57:D64) -> 1555 | E65: =SUM(E57:E64) -> 1235 | F65: =SUM(B65:E65) -> 7500 | G65: =SUM(G57:G64) -> 1
A67: For 223-333 riders 10 places
A68: Placings | B68: 1D | C68: 2D | D68: 3D | E68: 4D
A69: 1st | B69: =$B$7*$G$69 -> 528.15 | C69: =$C$7*$G$69 -> 460.95 | D69: =$D$7*$G$69 -> 326.55 | E69: =$E$7*$G$69 -> 259.35 | F69: è | G69: 0.21
A70: 2nd | B70: =$B$7*$G$70 -> 452.7 | C70: =$C$7*$G$70 -> 395.1 | D70: =$D$7*$G$70 -> 279.9 | E70: =$E$7*$G$70 -> 222.3 | F70: è | G70: 0.18
A71: 3rd | B71: =$B$7*$G$71 -> 377.25 | C71: =$C$7*$G$71 -> 329.25 | D71: =$D$7*$G$71 -> 233.25 | E71: =$E$7*$G$71 -> 185.25 | F71: è | G71: 0.15
A72: 4th | B72: =$B$7*$G$72 -> 301.8 | C72: =$C$7*$G$72 -> 263.4 | D72: =$D$7*$G$72 -> 186.6 | E72: =$E$7*$G$72 -> 148.2 | F72: è | G72: 0.12
A73: 5th | B73: =$B$7*$G$73 -> 226.35 | C73: =$C$7*$G$73 -> 197.55 | D73: =$D$7*$G$73 -> 139.95 | E73: =$E$7*$G$73 -> 111.15 | F73: è | G73: 0.09
A74: 6th | B74: =$B$7*$G$74 -> 176.05 | C74: =$C$7*$G$74 -> 153.65 | D74: =$D$7*$G$74 -> 108.85 | E74: =$E$7*$G$74 -> 86.45 | F74: è | G74: 0.07
A75: 7th | B75: =$B$7*$G$75 -> 150.9 | C75: =$C$7*$G$75 -> 131.7 | D75: =$D$7*$G$75 -> 93.3 | E75: =$E$7*$G$75 -> 74.1 | F75: è | G75: 0.06
A76: 8th | B76: =$B$7*$G$76 -> 125.75 | C76: =$C$7*$G$76 -> 109.75 | D76: =$D$7*$G$76 -> 77.75 | E76: =$E$7*$G$76 -> 61.75 | F76: è | G76: 0.05
A77: 9th | B77: =$B$7*$G$77 -> 100.6 | C77: =$C$7*$G$77 -> 87.8 | D77: =$D$7*$G$77 -> 62.2 | E77: =$E$7*$G$77 -> 49.4 | F77: è | G77: 0.04
A78: 10th | B78: =$B$7*$G$78 -> 75.45 | C78: =$C$7*$G$78 -> 65.85 | D78: =$D$7*$G$78 -> 46.65 | E78: =$E$7*$G$78 -> 37.05 | F78: è | G78: 0.03
A79: Totals | B79: =SUM(B69:B78) -> 2515 | C79: =SUM(C69:C78) -> 2195 | D79: =SUM(D69:D78) -> 1555 | E79: =SUM(E69:E78) -> 1235 | F79: =B79+C79+D79+E79 -> 7500 | G79: =SUM(G69:G78) -> 1
A81: For 334-500 riders 12 places
A82: Placings | B82: 1D | C82: 2D | D82: 3D | E82: 4D
A83: 1st | B83: =$B$7*$G$83 -> 477.85 | C83: =$C$7*$G$83 -> 417.05 | D83: =$D$7*$G$83 -> 295.45 | E83: =$E$7*$G$83 -> 234.65 | F83: è | G83: 0.19
A84: 2nd | B84: =$B$7*$G$84 -> 377.25 | C84: =$C$7*$G$84 -> 329.25 | D84: =$D$7*$G$84 -> 233.25 | E84: =$E$7*$G$84 -> 185.25 | F84: è | G84: 0.15
A85: 3rd | B85: =$B$7*$G$85 -> 301.8 | C85: =$C$7*$G$85 -> 263.4 | D85: =$D$7*$G$85 -> 186.6 | E85: =$E$7*$G$85 -> 148.2 | F85: è | G85: 0.12
A86: 4th | B86: =$B$7*$G$86 -> 251.5 | C86: =$C$7*$G$86 -> 219.5 | D86: =$D$7*$G$86 -> 155.5 | E86: =$E$7*$G$86 -> 123.5 | F86: è | G86: 0.1
A87: 5th | B87: =$B$7*$G$87 -> 226.35 | C87: =$C$7*$G$87 -> 197.55 | D87: =$D$7*$G$87 -> 139.95 | E87: =$E$7*$G$87 -> 111.15 | F87: è | G87: 0.09
A88: 6th | B88: =$B$7*$G$88 -> 201.2 | C88: =$C$7*$G$88 -> 175.6 | D88: =$D$7*$G$88 -> 124.4 | E88: =$E$7*$G$88 -> 98.8 | F88: è | G88: 0.08
A89: 7th | B89: =$B$7*$G$89 -> 176.05 | C89: =$C$7*$G$89 -> 153.65 | D89: =$D$7*$G$89 -> 108.85 | E89: =$E$7*$G$89 -> 86.45 | F89: è | G89: 0.07
A90: 8th | B90: =$B$7*$G$90 -> 150.9 | C90: =$C$7*$G$90 -> 131.7 | D90: =$D$7*$G$90 -> 93.3 | E90: =$E$7*$G$90 -> 74.1 | F90: è | G90: 0.06
A91: 9th | B91: =$B$7*$G$91 -> 125.75 | C91: =$C$7*$G$91 -> 109.75 | D91: =$D$7*$G$91 -> 77.75 | E91: =$E$7*$G$91 -> 61.75 | F91: è | G91: 0.05
A92: 10th | B92: =$B$7*$G$92 -> 100.6 | C92: =$C$7*$G$92 -> 87.8 | D92: =$D$7*$G$92 -> 62.2 | E92: =$E$7*$G$92 -> 49.4 | F92: è | G92: 0.04
A93: 11th | B93: =$B$7*$G$93 -> 75.45 | C93: =$C$7*$G$93 -> 65.85 | D93: =$D$7*$G$93 -> 46.65 | E93: =$E$7*$G$93 -> 37.05 | F93: è | G93: 0.03
A94: 12th | B94: =$B$7*$G$94 -> 50.3 | C94: =$C$7*$G$94 -> 43.9 | D94: =$D$7*$G$94 -> 31.1 | E94: =$E$7*$G$94 -> 24.7 | F94: è | G94: 0.02
A95: Totals | B95: =SUM(B83:B94) -> 2515 | C95: =SUM(C83:C94) -> 2195 | D95: =SUM(D83:D94) -> 1555 | E95: =SUM(E83:E94) -> 1235 | F95: =B95+C95+D95+E95 -> 7500 | G95: =SUM(G83:G94) -> 1
A97: For 501-750 riders 15 places
A98: Placings | B98: 1D | C98: 2D | D98: 3D | E98: 4D
A99: 1st | B99: =$B$7*$G$99 -> 452.7 | C99: =$C$7*$G$99 -> 395.1 | D99: =$D$7*$G$99 -> 279.9 | E99: =$E$7*$G$99 -> 222.3 | F99: è | G99: 0.18
A100: 2nd | B100: =$B$7*$G$100 -> 377.25 | C100: =$C$7*$G$100 -> 329.25 | D100: =$D$7*$G$100 -> 233.25 | E100: =$E$7*$G$100 -> 185.25 | F100: è | G100: 0.15
A101: 3rd | B101: =$B$7*$G$101 -> 301.8 | C101: =$C$7*$G$101 -> 263.4 | D101: =$D$7*$G$101 -> 186.6 | E101: =$E$7*$G$101 -> 148.2 | F101: è | G101: 0.12
A102: 4th | B102: =$B$7*$G$102 -> 251.5 | C102: =$C$7*$G$102 -> 219.5 | D102: =$D$7*$G$102 -> 155.5 | E102: =$E$7*$G$102 -> 123.5 | F102: è | G102: 0.1
A103: 5th | B103: =$B$7*$G$103 -> 213.775 | C103: =$C$7*$G$103 -> 186.575 | D103: =$D$7*$G$103 -> 132.175 | E103: =$E$7*$G$103 -> 104.975 | F103: è | G103: 0.085
A104: 6th | B104: =$B$7*$G$104 -> 176.05 | C104: =$C$7*$G$104 -> 153.65 | D104: =$D$7*$G$104 -> 108.85 | E104: =$E$7*$G$104 -> 86.45 | F104: è | G104: 0.07
A105: 7th | B105: =$B$7*$G$105 -> 150.9 | C105: =$C$7*$G$105 -> 131.7 | D105: =$D$7*$G$105 -> 93.3 | E105: =$E$7*$G$105 -> 74.1 | F105: è | G105: 0.06
A106: 8th | B106: =$B$7*$G$106 -> 125.75 | C106: =$C$7*$G$106 -> 109.75 | D106: =$D$7*$G$106 -> 77.75 | E106: =$E$7*$G$106 -> 61.75 | F106: è | G106: 0.05
A107: 9th | B107: =$B$7*$G$107 -> 106.8875 | C107: =$C$7*$G$107 -> 93.2875 | D107: =$D$7*$G$107 -> 66.0875 | E107: =$E$7*$G$107 -> 52.4875 | F107: è | G107: 0.0425
A108: 10th | B108: =$B$7*$G$108 -> 88.025 | C108: =$C$7*$G$108 -> 76.825 | D108: =$D$7*$G$108 -> 54.425 | E108: =$E$7*$G$108 -> 43.225 | F108: è | G108: 0.035
A109: 11th | B109: =$B$7*$G$109 -> 75.45 | C109: =$C$7*$G$109 -> 65.85 | D109: =$D$7*$G$109 -> 46.65 | E109: =$E$7*$G$109 -> 37.05 | F109: è | G109: 0.03
A110: 12th | B110: =$B$7*$G$110 -> 62.875 | C110: =$C$7*$G$110 -> 54.875 | D110: =$D$7*$G$110 -> 38.875 | E110: =$E$7*$G$110 -> 30.875 | F110: è | G110: 0.025
A111: 13th | B111: =$B$7*$G$111 -> 50.3 | C111: =$C$7*$G$111 -> 43.9 | D111: =$D$7*$G$111 -> 31.1 | E111: =$E$7*$G$111 -> 24.7 | F111: è | G111: 0.02
A112: 14th | B112: =$B$7*$G$112 -> 44.0125 | C112: =$C$7*$G$112 -> 38.4125 | D112: =$D$7*$G$112 -> 27.2125 | E112: =$E$7*$G$112 -> 21.6125 | F112: è | G112: 0.0175
A113: 15th | B113: =$B$7*$G$113 -> 37.725 | C113: =$C$7*$G$113 -> 32.925 | D113: =$D$7*$G$113 -> 23.325 | E113: =$E$7*$G$113 -> 18.525 | F113: è | G113: 0.015
A114: Totals | B114: =SUM(B99:B113) -> 2515 | C114: =SUM(C99:C113) -> 2195 | D114: =SUM(D99:D113) -> 1555 | E114: =SUM(E99:E113) -> 1235 | F114: =B114+C114+D114+E114 -> 7500 | G114: =SUM(G99:G113) -> 1
A116: For 751-1200 riders 20 places
A117: Placings | B117: 1D | C117: 2D | D117: 3D | E117: 4D
A118: 1st | B118: =$B$7*$G$118 -> 352.1 | C118: =$C$7*$G$118 -> 307.3 | D118: =$D$7*$G$118 -> 217.7 | E118: =$E$7*$G$118 -> 172.9 | F118: è | G118: 0.14
A119: 2nd | B119: =$B$7*$G$119 -> 276.65 | C119: =$C$7*$G$119 -> 241.45 | D119: =$D$7*$G$119 -> 171.05 | E119: =$E$7*$G$119 -> 135.85 | F119: è | G119: 0.11
A120: 3rd | B120: =$B$7*$G$120 -> 226.35 | C120: =$C$7*$G$120 -> 197.55 | D120: =$D$7*$G$120 -> 139.95 | E120: =$E$7*$G$120 -> 111.15 | F120: è | G120: 0.09
A121: 4th | B121: =$B$7*$G$121 -> 193.655 | C121: =$C$7*$G$121 -> 169.015 | D121: =$D$7*$G$121 -> 119.735 | E121: =$E$7*$G$121 -> 95.095 | F121: è | G121: 0.077
A122: 5th | B122: =$B$7*$G$122 -> 176.05 | C122: =$C$7*$G$122 -> 153.65 | D122: =$D$7*$G$122 -> 108.85 | E122: =$E$7*$G$122 -> 86.45 | F122: è | G122: 0.07
A123: 6th | B123: =$B$7*$G$123 -> 163.475 | C123: =$C$7*$G$123 -> 142.675 | D123: =$D$7*$G$123 -> 101.075 | E123: =$E$7*$G$123 -> 80.275 | F123: è | G123: 0.065
A124: 7th | B124: =$B$7*$G$124 -> 150.9 | C124: =$C$7*$G$124 -> 131.7 | D124: =$D$7*$G$124 -> 93.3 | E124: =$E$7*$G$124 -> 74.1 | F124: è | G124: 0.06
A125: 8th | B125: =$B$7*$G$125 -> 138.325 | C125: =$C$7*$G$125 -> 120.725 | D125: =$D$7*$G$125 -> 85.525 | E125: =$E$7*$G$125 -> 67.925 | F125: è | G125: 0.055
A126: 9th | B126: =$B$7*$G$126 -> 125.75 | C126: =$C$7*$G$126 -> 109.75 | D126: =$D$7*$G$126 -> 77.75 | E126: =$E$7*$G$126 -> 61.75 | F126: è | G126: 0.05
A127: 10th | B127: =$B$7*$G$127 -> 113.175 | C127: =$C$7*$G$127 -> 98.775 | D127: =$D$7*$G$127 -> 69.975 | E127: =$E$7*$G$127 -> 55.575 | F127: è | G127: 0.045
A128: 11th | B128: =$B$7*$G$128 -> 100.6 | C128: =$C$7*$G$128 -> 87.8 | D128: =$D$7*$G$128 -> 62.2 | E128: =$E$7*$G$128 -> 49.4 | F128: è | G128: 0.04
A129: 12th | B129: =$B$7*$G$129 -> 93.055 | C129: =$C$7*$G$129 -> 81.215 | D129: =$D$7*$G$129 -> 57.535 | E129: =$E$7*$G$129 -> 45.695 | F129: è | G129: 0.037
A130: 13th | B130: =$B$7*$G$130 -> 82.995 | C130: =$C$7*$G$130 -> 72.435 | D130: =$D$7*$G$130 -> 51.315 | E130: =$E$7*$G$130 -> 40.755 | F130: è | G130: 0.033
A131: 14th | B131: =$B$7*$G$131 -> 72.935 | C131: =$C$7*$G$131 -> 63.655 | D131: =$D$7*$G$131 -> 45.095 | E131: =$E$7*$G$131 -> 35.815 | F131: è | G131: 0.029
A132: 15th | B132: =$B$7*$G$132 -> 62.875 | C132: =$C$7*$G$132 -> 54.875 | D132: =$D$7*$G$132 -> 38.875 | E132: =$E$7*$G$132 -> 30.875 | F132: è | G132: 0.025
A133: 16th | B133: =$B$7*$G$133 -> 52.815 | C133: =$C$7*$G$133 -> 46.095 | D133: =$D$7*$G$133 -> 32.655 | E133: =$E$7*$G$133 -> 25.935 | F133: è | G133: 0.021
A134: 17th | B134: =$B$7*$G$134 -> 42.755 | C134: =$C$7*$G$134 -> 37.315 | D134: =$D$7*$G$134 -> 26.435 | E134: =$E$7*$G$134 -> 20.995 | F134: è | G134: 0.017
A135: 18th | B135: =$B$7*$G$135 -> 35.21 | C135: =$C$7*$G$135 -> 30.73 | D135: =$D$7*$G$135 -> 21.77 | E135: =$E$7*$G$135 -> 17.29 | F135: è | G135: 0.014
A136: 19th | B136: =$B$7*$G$136 -> 30.18 | C136: =$C$7*$G$136 -> 26.34 | D136: =$D$7*$G$136 -> 18.66 | E136: =$E$7*$G$136 -> 14.82 | F136: è | G136: 0.012
A137: 20th | B137: =$B$7*$G$137 -> 25.15 | C137: =$C$7*$G$137 -> 21.95 | D137: =$D$7*$G$137 -> 15.55 | E137: =$E$7*$G$137 -> 12.35 | F137: è | G137: 0.01
A138: Totals | B138: =SUM(B118:B137) -> 2515 | C138: =SUM(C118:C137) -> 2195 | D138: =SUM(D118:D137) -> 1555 | E138: =SUM(E118:E137) -> 1235 | F138: =B138+C138+D138+E138 -> 7500 | G138: =SUM(G118:G137) -> 1
A140: For 1201 or More riders 30 places
A141: Placings | B141: 1D | C141: 2D | D141: 3D | E141: 4D
A142: 1st | B142: =$B$7*$G$142 -> 301.8 | C142: =$C$7*$G$142 -> 263.4 | D142: =$D$7*$G$142 -> 186.6 | E142: =$E$7*$G$142 -> 148.2 | F142: è | G142: 0.12
A143: 2nd | B143: =$B$7*$G$143 -> 238.925 | C143: =$C$7*$G$143 -> 208.525 | D143: =$D$7*$G$143 -> 147.725 | E143: =$E$7*$G$143 -> 117.325 | F143: è | G143: 0.095
A144: 3rd | B144: =$B$7*$G$144 -> 183.595 | C144: =$C$7*$G$144 -> 160.235 | D144: =$D$7*$G$144 -> 113.515 | E144: =$E$7*$G$144 -> 90.155 | F144: è | G144: 0.073
A145: 4th | B145: =$B$7*$G$145 -> 155.93 | C145: =$C$7*$G$145 -> 136.09 | D145: =$D$7*$G$145 -> 96.41 | E145: =$E$7*$G$145 -> 76.57 | F145: è | G145: 0.062
A146: 5th | B146: =$B$7*$G$146 -> 125.75 | C146: =$C$7*$G$146 -> 109.75 | D146: =$D$7*$G$146 -> 77.75 | E146: =$E$7*$G$146 -> 61.75 | F146: è | G146: 0.05
A147: 6th | B147: =$B$7*$G$147 -> 113.175 | C147: =$C$7*$G$147 -> 98.775 | D147: =$D$7*$G$147 -> 69.975 | E147: =$E$7*$G$147 -> 55.575 | F147: è | G147: 0.045
A148: 7th | B148: =$B$7*$G$148 -> 108.145 | C148: =$C$7*$G$148 -> 94.385 | D148: =$D$7*$G$148 -> 66.865 | E148: =$E$7*$G$148 -> 53.105 | F148: è | G148: 0.043
A149: 8th | B149: =$B$7*$G$149 -> 100.6 | C149: =$C$7*$G$149 -> 87.8 | D149: =$D$7*$G$149 -> 62.2 | E149: =$E$7*$G$149 -> 49.4 | F149: è | G149: 0.04
A150: 9th | B150: =$B$7*$G$150 -> 93.055 | C150: =$C$7*$G$150 -> 81.215 | D150: =$D$7*$G$150 -> 57.535 | E150: =$E$7*$G$150 -> 45.695 | F150: è | G150: 0.037
A151: 10th | B151: =$B$7*$G$151 -> 88.025 | C151: =$C$7*$G$151 -> 76.825 | D151: =$D$7*$G$151 -> 54.425 | E151: =$E$7*$G$151 -> 43.225 | F151: è | G151: 0.035
A152: 11th | B152: =$B$7*$G$152 -> 82.995 | C152: =$C$7*$G$152 -> 72.435 | D152: =$D$7*$G$152 -> 51.315 | E152: =$E$7*$G$152 -> 40.755 | F152: è | G152: 0.033
A153: 12th | B153: =$B$7*$G$153 -> 77.965 | C153: =$C$7*$G$153 -> 68.045 | D153: =$D$7*$G$153 -> 48.205 | E153: =$E$7*$G$153 -> 38.285 | F153: è | G153: 0.031
A154: 13th | B154: =$B$7*$G$154 -> 72.935 | C154: =$C$7*$G$154 -> 63.655 | D154: =$D$7*$G$154 -> 45.095 | E154: =$E$7*$G$154 -> 35.815 | F154: è | G154: 0.029
A155: 14th | B155: =$B$7*$G$155 -> 67.905 | C155: =$C$7*$G$155 -> 59.265 | D155: =$D$7*$G$155 -> 41.985 | E155: =$E$7*$G$155 -> 33.345 | F155: è | G155: 0.027
A156: 15th | B156: =$B$7*$G$156 -> 62.875 | C156: =$C$7*$G$156 -> 54.875 | D156: =$D$7*$G$156 -> 38.875 | E156: =$E$7*$G$156 -> 30.875 | F156: è | G156: 0.025
A157: 16th | B157: =$B$7*$G$157 -> 60.36 | C157: =$C$7*$G$157 -> 52.68 | D157: =$D$7*$G$157 -> 37.32 | E157: =$E$7*$G$157 -> 29.64 | F157: è | G157: 0.024
A158: 17th | B158: =$B$7*$G$158 -> 57.845 | C158: =$C$7*$G$158 -> 50.485 | D158: =$D$7*$G$158 -> 35.765 | E158: =$E$7*$G$158 -> 28.405 | F158: è | G158: 0.023
A159: 18th | B159: =$B$7*$G$159 -> 55.33 | C159: =$C$7*$G$159 -> 48.29 | D159: =$D$7*$G$159 -> 34.21 | E159: =$E$7*$G$159 -> 27.17 | F159: è | G159: 0.022
A160: 19th | B160: =$B$7*$G$160 -> 52.815 | C160: =$C$7*$G$160 -> 46.095 | D160: =$D$7*$G$160 -> 32.655 | E160: =$E$7*$G$160 -> 25.935 | F160: è | G160: 0.021
A161: 20th | B161: =$B$7*$G$161 -> 50.3 | C161: =$C$7*$G$161 -> 43.9 | D161: =$D$7*$G$161 -> 31.1 | E161: =$E$7*$G$161 -> 24.7 | F161: è | G161: 0.02
A162: 21st | B162: =$B$7*$G$162 -> 47.785 | C162: =$C$7*$G$162 -> 41.705 | D162: =$D$7*$G$162 -> 29.545 | E162: =$E$7*$G$162 -> 23.465 | F162: è | G162: 0.019
A163: 22nd | B163: =$B$7*$G$163 -> 45.27 | C163: =$C$7*$G$163 -> 39.51 | D163: =$D$7*$G$163 -> 27.99 | E163: =$E$7*$G$163 -> 22.23 | F163: è | G163: 0.018
A164: 23rd | B164: =$B$7*$G$164 -> 42.755 | C164: =$C$7*$G$164 -> 37.315 | D164: =$D$7*$G$164 -> 26.435 | E164: =$E$7*$G$164 -> 20.995 | F164: è | G164: 0.017
A165: 24th | B165: =$B$7*$G$165 -> 40.24 | C165: =$C$7*$G$165 -> 35.12 | D165: =$D$7*$G$165 -> 24.88 | E165: =$E$7*$G$165 -> 19.76 | F165: è | G165: 0.016
A166: 25th | B166: =$B$7*$G$166 -> 37.725 | C166: =$C$7*$G$166 -> 32.925 | D166: =$D$7*$G$166 -> 23.325 | E166: =$E$7*$G$166 -> 18.525 | F166: è | G166: 0.015
A167: 26th | B167: =$B$7*$G$167 -> 35.21 | C167: =$C$7*$G$167 -> 30.73 | D167: =$D$7*$G$167 -> 21.77 | E167: =$E$7*$G$167 -> 17.29 | F167: è | G167: 0.014
A168: 27th | B168: =$B$7*$G$168 -> 32.695 | C168: =$C$7*$G$168 -> 28.535 | D168: =$D$7*$G$168 -> 20.215 | E168: =$E$7*$G$168 -> 16.055 | F168: è | G168: 0.013
A169: 28th | B169: =$B$7*$G$169 -> 30.18 | C169: =$C$7*$G$169 -> 26.34 | D169: =$D$7*$G$169 -> 18.66 | E169: =$E$7*$G$169 -> 14.82 | F169: è | G169: 0.012
A170: 29th | B170: =$B$7*$G$170 -> 27.665 | C170: =$C$7*$G$170 -> 24.145 | D170: =$D$7*$G$170 -> 17.105 | E170: =$E$7*$G$170 -> 13.585 | F170: è | G170: 0.011
A171: 30th | B171: =$B$7*$G$171 -> 25.15 | C171: =$C$7*$G$171 -> 21.95 | D171: =$D$7*$G$171 -> 15.55 | E171: =$E$7*$G$171 -> 12.35 | F171: è | G171: 0.01
A172: Totals | B172: =SUM(B142:B171) -> 2515 | C172: =SUM(C142:C171) -> 2195 | D172: =SUM(D142:D171) -> 1555 | E172: =SUM(E142:E171) -> 1235 | F172: =B172+C172+D172+E172 -> 7500 | G172: =SUM(G142:G171) -> 1

Sheet 5D Payout BBR
A1: 5D Payout BBR
A2: Entry Fee | B2: # Entries | C2: % Payback | D2: $ From Entry | E2: Added $ | F2: Total Payout | G2: Total $ Held
A3: 50 | B3: 272 | C3: 0.8 | D3: =$A$3*$C$3*$B$3 -> 10880 | E3: 2000 | F3: =($A$3*$C$3)*$B$3+$E$3 -> 12880 | G3: =$A$3*(100%-$C$3)*$B$3 -> 2720
A5: % in each D | B5: 0.3 | C5: 0.25 | D5: 0.2 | E5: 0.15 | F5: 0.1 | G5: Total % Payout | H5: =SUM(B5:F5) -> 1
B6: 1D | C6: 2D | D6: 3D | E6: 4D | F6: 5D
B7: =(($A$3*$B$3*$C$3*$B$5)+($E$3*$B$5)) -> 3864 | C7: =(($A$3*$B$3*$C$3*$C$5)+($E$3*$C$5)) -> 3220 | D7: =(($A$3*$B$3*$C$3*$D$5)+($E$3*$D$5)) -> 2576 | E7: =(($A$3*$B$3*$C$3*$E$5)+($E$3*$E$5)) -> 1932 | F7: =(($A$3*$B$3*$C$3*$F$5)+($E$3*$F$5)) -> 1288
A8: Totals | B8: =SUM(B7) -> 3864 | C8: =SUM(C7) -> 3220 | D8: =SUM(D7) -> 2576 | E8: =SUM(E7) -> 1932 | F8: =SUM(F7) -> 1288 | G8: =SUM(B8:F8) -> 12880
A10: For 1-25 riders 1 place
A11: Placings | B11: 1D | C11: 2D | D11: 3D | E11: 4D | F11: 5D
A12: 1st | B12: =$B$7*$H$12 -> 3864 | C12: =$C$7*$H$12 -> 3220 | D12: =$D$7*$H$12 -> 2576 | E12: =$E$7*$H$12 -> 1932 | F12: =$F$7*$H$12 -> 1288 | G12: è | H12: 1
A13: Totals | B13: =SUM(B12:B12) -> 3864 | C13: =SUM(C12:C12) -> 3220 | D13: =SUM(D12:D12) -> 2576 | E13: =SUM(E12:E12) -> 1932 | F13: =SUM(F12) -> 1288 | G13: =SUM(B13:F13) -> 12880 | H13: =SUM(H12) -> 1
A15: For 26-50 riders 2 places
A16: Placings | B16: 1D | C16: 2D | D16: 3D | E16: 4D | F16: 5D
A17: 1st | B17: =$B$7*$H$17 -> 2318.4 | C17: =$C$7*$H$17 -> 1932 | D17: =$D$7*$H$17 -> 1545.6 | E17: =$E$7*$H$17 -> 1159.2 | F17: =$F$7*$H$17 -> 772.8 | G17: è | H17: 0.6
A18: 2nd | B18: =$B$7*$H$18 -> 1545.6 | C18: =$C$7*$H$18 -> 1288 | D18: =$D$7*$H$18 -> 1030.4 | E18: =$E$7*$H$18 -> 772.8 | F18: =$F$7*$H$18 -> 515.2 | G18: è | H18: 0.4
A19: Totals | B19: =SUM(B17:B18) -> 3864 | C19: =SUM(C17:C18) -> 3220 | D19: =SUM(D17:D18) -> 2576 | E19: =SUM(E17:E18) -> 1932 | F19: =SUM(F17:F18) -> 1288 | G19: =SUM(B19:F19) -> 12880 | H19: =SUM(H17:H18) -> 1
A21: For 51-100 riders 3 places
A22: Placings | B22: 1D | C22: 2D | D22: 3D | E22: 4D | F22: 5D
A23: 1st | B23: =$B$7*$H$23 -> 1932 | C23: =$C$7*$H$23 -> 1610 | D23: =$D$7*$H$23 -> 1288 | E23: =$E$7*$H$23 -> 966 | F23: =$F$7*$H$23 -> 644 | G23: è | H23: 0.5
A24: 2nd | B24: =$B$7*$H$24 -> 1159.2 | C24: =$C$7*$H$24 -> 966 | D24: =$D$7*$H$24 -> 772.8 | E24: =$E$7*$H$24 -> 579.6 | F24: =$F$7*$H$24 -> 386.4 | G24: è | H24: 0.3
A25: 3rd | B25: =$B$7*$H$25 -> 772.8 | C25: =$C$7*$H$25 -> 644 | D25: =$D$7*$H$25 -> 515.2 | E25: =$E$7*$H$25 -> 386.4 | F25: =$F$7*$H$25 -> 257.6 | G25: è | H25: 0.2
A26: Totals | B26: =SUM(B23:B25) -> 3864 | C26: =SUM(C23:C25) -> 3220 | D26: =SUM(D23:D25) -> 2576 | E26: =SUM(E23:E25) -> 1932 | F26: =SUM(F23:F25) -> 1288 | G26: =SUM(B26:F26) -> 12880 | H26: =SUM(H23:H25) -> 1
A28: For 101-143 riders 4 places
A29: Placings | B29: 1D | C29: 2D | D29: 3D | E29: 4D | F29: 5D
A30: 1st | B30: =$B$7*$H$30 -> 1545.6 | C30: =$C$7*$H$30 -> 1288 | D30: =$D$7*$H$30 -> 1030.4 | E30: =$E$7*$H$30 -> 772.8 | F30: =$F$7*$H$30 -> 515.2 | G30: è | H30: 0.4
A31: 2nd | B31: =$B$7*$H$31 -> 1159.2 | C31: =$C$7*$H$31 -> 966 | D31: =$D$7*$H$31 -> 772.8 | E31: =$E$7*$H$31 -> 579.6 | F31: =$F$7*$H$31 -> 386.4 | G31: è | H31: 0.3
A32: 3rd | B32: =$B$7*$H$32 -> 772.8 | C32: =$C$7*$H$32 -> 644 | D32: =$D$7*$H$32 -> 515.2 | E32: =$E$7*$H$32 -> 386.4 | F32: =$F$7*$H$32 -> 257.6 | G32: è | H32: 0.2
A33: 4th | B33: =$B$7*$H$33 -> 386.4 | C33: =$C$7*$H$33 -> 322 | D33: =$D$7*$H$33 -> 257.6 | E33: =$E$7*$H$33 -> 193.2 | F33: =$F$7*$H$33 -> 128.8 | G33: è | H33: 0.1
A34: Totals | B34: =SUM(B30:B33) -> 3864 | C34: =SUM(C30:C33) -> 3220 | D34: =SUM(D30:D33) -> 2576 | E34: =SUM(E30:E33) -> 1932 | F34: =SUM(F30:F33) -> 1288 | G34: =SUM(B34:F34) -> 12880 | H34: =SUM(H30:H33) -> 1
A36: For 144-200 riders 5 places
A37: Placings | B37: 1D | C37: 2D | D37: 3D | E37: 4D | F37: 5D
A38: 1st | B38: =$B$7*$H$38 -> 1275.12 | C38: =$C$7*$H$38 -> 1062.6 | D38: =$D$7*$H$38 -> 850.08 | E38: =$E$7*$H$38 -> 637.56 | F38: =$F$7*$H$38 -> 425.04 | G38: è | H38: 0.33
A39: 2nd | B39: =$B$7*$H$39 -> 1043.28 | C39: =$C$7*$H$39 -> 869.4 | D39: =$D$7*$H$39 -> 695.52 | E39: =$E$7*$H$39 -> 521.64 | F39: =$F$7*$H$39 -> 347.76 | G39: è | H39: 0.27
A40: 3rd | B40: =$B$7*$H$40 -> 772.8 | C40: =$C$7*$H$40 -> 644 | D40: =$D$7*$H$40 -> 515.2 | E40: =$E$7*$H$40 -> 386.4 | F40: =$F$7*$H$40 -> 257.6 | G40: è | H40: 0.2
A41: 4th | B41: =$B$7*$H$41 -> 502.32 | C41: =$C$7*$H$41 -> 418.6 | D41: =$D$7*$H$41 -> 334.88 | E41: =$E$7*$H$41 -> 251.16 | F41: =$F$7*$H$41 -> 167.44 | G41: è | H41: 0.13
A42: 5th | B42: =$B$7*$H$42 -> 270.48 | C42: =$C$7*$H$42 -> 225.4 | D42: =$D$7*$H$42 -> 180.32 | E42: =$E$7*$H$42 -> 135.24 | F42: =$F$7*$H$42 -> 90.16 | G42: è | H42: 0.07
A43: Totals | B43: =SUM(B38:B42) -> 3864 | C43: =SUM(C38:C42) -> 3220 | D43: =SUM(D38:D42) -> 2576 | E43: =SUM(E38:E42) -> 1932 | F43: =SUM(F38:F42) -> 1288 | G43: =SUM(B43:F43) -> 12880 | H43: =SUM(H38:H42) -> 1
A45: For 201-250 riders 6 places
A46: Placings | B46: 1D | C46: 2D | D46: 3D | E46: 4D | F46: 5D
A47: 1st | B47: =$B$7*$H$47 -> 1120.56 | C47: =$C$7*$H$47 -> 933.8 | D47: =$D$7*$H$47 -> 747.04 | E47: =$E$7*$H$47 -> 560.28 | F47: =$F$7*$H$47 -> 373.52 | G47: è | H47: 0.29
A48: 2nd | B48: =$B$7*$H$48 -> 927.36 | C48: =$C$7*$H$48 -> 772.8 | D48: =$D$7*$H$48 -> 618.24 | E48: =$E$7*$H$48 -> 463.68 | F48: =$F$7*$H$48 -> 309.12 | G48: è | H48: 0.24
A49: 3rd | B49: =$B$7*$H$49 -> 734.16 | C49: =$C$7*$H$49 -> 611.8 | D49: =$D$7*$H$49 -> 489.44 | E49: =$E$7*$H$49 -> 367.08 | F49: =$F$7*$H$49 -> 244.72 | G49: è | H49: 0.19
A50: 4th | B50: =$B$7*$H$50 -> 540.96 | C50: =$C$7*$H$50 -> 450.8 | D50: =$D$7*$H$50 -> 360.64 | E50: =$E$7*$H$50 -> 270.48 | F50: =$F$7*$H$50 -> 180.32 | G50: è | H50: 0.14
A51: 5th | B51: =$B$7*$H$51 -> 347.76 | C51: =$C$7*$H$51 -> 289.8 | D51: =$D$7*$H$51 -> 231.84 | E51: =$E$7*$H$51 -> 173.88 | F51: =$F$7*$H$51 -> 115.92 | G51: è | H51: 0.09
A52: 6th | B52: =$B$7*$H$52 -> 193.2 | C52: =$C$7*$H$52 -> 161 | D52: =$D$7*$H$52 -> 128.8 | E52: =$E$7*$H$52 -> 96.6 | F52: =$F$7*$H$52 -> 64.4 | G52: è | H52: 0.05
A53: Totals | B53: =SUM(B47:B52) -> 3864 | C53: =SUM(C47:C52) -> 3220 | D53: =SUM(D47:D52) -> 2576 | E53: =SUM(E47:E52) -> 1932 | F53: =SUM(F47:F52) -> 1288 | G53: =SUM(B53:F53) -> 12880 | H53: =SUM(H47:H52) -> 1
A55: For 251-333 riders 8 places
A56: Placings | B56: 1D | C56: 2D | D56: 3D | E56: 4D | F56: 5D
A57: 1st | B57: =$B$7*$H$57 -> 927.36 | C57: =$C$7*$H$57 -> 772.8 | D57: =$D$7*$H$57 -> 618.24 | E57: =$E$7*$H$57 -> 463.68 | F57: =$F$7*$H$57 -> 309.12 | G57: è | H57: 0.24
A58: 2nd | B58: =$B$7*$H$58 -> 772.8 | C58: =$C$7*$H$58 -> 644 | D58: =$D$7*$H$58 -> 515.2 | E58: =$E$7*$H$58 -> 386.4 | F58: =$F$7*$H$58 -> 257.6 | G58: è | H58: 0.2
A59: 3rd | B59: =$B$7*$H$59 -> 656.88 | C59: =$C$7*$H$59 -> 547.4 | D59: =$D$7*$H$59 -> 437.92 | E59: =$E$7*$H$59 -> 328.44 | F59: =$F$7*$H$59 -> 218.96 | G59: è | H59: 0.17
A60: 4th | B60: =$B$7*$H$60 -> 502.32 | C60: =$C$7*$H$60 -> 418.6 | D60: =$D$7*$H$60 -> 334.88 | E60: =$E$7*$H$60 -> 251.16 | F60: =$F$7*$H$60 -> 167.44 | G60: è | H60: 0.13
A61: 5th | B61: =$B$7*$H$61 -> 386.4 | C61: =$C$7*$H$61 -> 322 | D61: =$D$7*$H$61 -> 257.6 | E61: =$E$7*$H$61 -> 193.2 | F61: =$F$7*$H$61 -> 128.8 | G61: è | H61: 0.1
A62: 6th | B62: =$B$7*$H$62 -> 270.48 | C62: =$C$7*$H$62 -> 225.4 | D62: =$D$7*$H$62 -> 180.32 | E62: =$E$7*$H$62 -> 135.24 | F62: =$F$7*$H$62 -> 90.16 | G62: è | H62: 0.07
A63: 7th | B63: =$B$7*$H$63 -> 193.2 | C63: =$C$7*$H$63 -> 161 | D63: =$D$7*$H$63 -> 128.8 | E63: =$E$7*$H$63 -> 96.6 | F63: =$F$7*$H$63 -> 64.4 | G63: è | H63: 0.05
A64: 8th | B64: =$B$7*$H$64 -> 154.56 | C64: =$C$7*$H$64 -> 128.8 | D64: =$D$7*$H$64 -> 103.04 | E64: =$E$7*$H$64 -> 77.28 | F64: =$F$7*$H$64 -> 51.52 | G64: è | H64: 0.04
A65: Totals | B65: =SUM(B57:B64) -> 3864 | C65: =SUM(C57:C64) -> 3220 | D65: =SUM(D57:D64) -> 2576 | E65: =SUM(E57:E64) -> 1932 | F65: =SUM(F57:F64) -> 1288 | G65: =SUM(B65:F65) -> 12880 | H65: =SUM(H57:H64) -> 1
A67: For 334-500 riders 10 places
A68: Placings | B68: 1D | C68: 2D | D68: 3D | E68: 4D | F68: 5D
A69: 1st | B69: =$B$7*$H$69 -> 811.44 | C69: =$C$7*$H$69 -> 676.2 | D69: =$D$7*$H$69 -> 540.96 | E69: =$E$7*$H$69 -> 405.72 | F69: =$F$7*$H$69 -> 270.48 | G69: è | H69: 0.21
A70: 2nd | B70: =$B$7*$H$70 -> 695.52 | C70: =$C$7*$H$70 -> 579.6 | D70: =$D$7*$H$70 -> 463.68 | E70: =$E$7*$H$70 -> 347.76 | F70: =$F$7*$H$70 -> 231.84 | G70: è | H70: 0.18
A71: 3rd | B71: =$B$7*$H$71 -> 579.6 | C71: =$C$7*$H$71 -> 483 | D71: =$D$7*$H$71 -> 386.4 | E71: =$E$7*$H$71 -> 289.8 | F71: =$F$7*$H$71 -> 193.2 | G71: è | H71: 0.15
A72: 4th | B72: =$B$7*$H$72 -> 463.68 | C72: =$C$7*$H$72 -> 386.4 | D72: =$D$7*$H$72 -> 309.12 | E72: =$E$7*$H$72 -> 231.84 | F72: =$F$7*$H$72 -> 154.56 | G72: è | H72: 0.12
A73: 5th | B73: =$B$7*$H$73 -> 347.76 | C73: =$C$7*$H$73 -> 289.8 | D73: =$D$7*$H$73 -> 231.84 | E73: =$E$7*$H$73 -> 173.88 | F73: =$F$7*$H$73 -> 115.92 | G73: è | H73: 0.09
A74: 6th | B74: =$B$7*$H$74 -> 270.48 | C74: =$C$7*$H$74 -> 225.4 | D74: =$D$7*$H$74 -> 180.32 | E74: =$E$7*$H$74 -> 135.24 | F74: =$F$7*$H$74 -> 90.16 | G74: è | H74: 0.07
A75: 7th | B75: =$B$7*$H$75 -> 231.84 | C75: =$C$7*$H$75 -> 193.2 | D75: =$D$7*$H$75 -> 154.56 | E75: =$E$7*$H$75 -> 115.92 | F75: =$F$7*$H$75 -> 77.28 | G75: è | H75: 0.06
A76: 8th | B76: =$B$7*$H$76 -> 193.2 | C76: =$C$7*$H$76 -> 161 | D76: =$D$7*$H$76 -> 128.8 | E76: =$E$7*$H$76 -> 96.6 | F76: =$F$7*$H$76 -> 64.4 | G76: è | H76: 0.05
A77: 9th | B77: =$B$7*$H$77 -> 154.56 | C77: =$C$7*$H$77 -> 128.8 | D77: =$D$7*$H$77 -> 103.04 | E77: =$E$7*$H$77 -> 77.28 | F77: =$F$7*$H$77 -> 51.52 | G77: è | H77: 0.04
A78: 10th | B78: =$B$7*$H$78 -> 115.92 | C78: =$C$7*$H$78 -> 96.6 | D78: =$D$7*$H$78 -> 77.28 | E78: =$E$7*$H$78 -> 57.96 | F78: =$F$7*$H$78 -> 38.64 | G78: è | H78: 0.03
A79: Totals | B79: =SUM(B69:B78) -> 3864 | C79: =SUM(C69:C78) -> 3220 | D79: =SUM(D69:D78) -> 2576 | E79: =SUM(E69:E78) -> 1932 | F79: =SUM(F69:F78) -> 1288 | G79: =SUM(B79:F79) -> 12880 | H79: =SUM(H69:H78) -> 1
A81: For 501-666 riders 12 places
A82: Placings | B82: 1D | C82: 2D | D82: 3D | E82: 4D | F82: 5D
A83: 1st | B83: =$B$7*$H$83 -> 734.16 | C83: =$C$7*$H$83 -> 611.8 | D83: =$D$7*$H$83 -> 489.44 | E83: =$E$7*$H$83 -> 367.08 | F83: =$F$7*$H$83 -> 244.72 | G83: è | H83: 0.19
A84: 2nd | B84: =$B$7*$H$84 -> 579.6 | C84: =$C$7*$H$84 -> 483 | D84: =$D$7*$H$84 -> 386.4 | E84: =$E$7*$H$84 -> 289.8 | F84: =$F$7*$H$84 -> 193.2 | G84: è | H84: 0.15
A85: 3rd | B85: =$B$7*$H$85 -> 463.68 | C85: =$C$7*$H$85 -> 386.4 | D85: =$D$7*$H$85 -> 309.12 | E85: =$E$7*$H$85 -> 231.84 | F85: =$F$7*$H$85 -> 154.56 | G85: è | H85: 0.12
A86: 4th | B86: =$B$7*$H$86 -> 386.4 | C86: =$C$7*$H$86 -> 322 | D86: =$D$7*$H$86 -> 257.6 | E86: =$E$7*$H$86 -> 193.2 | F86: =$F$7*$H$86 -> 128.8 | G86: è | H86: 0.1
A87: 5th | B87: =$B$7*$H$87 -> 347.76 | C87: =$C$7*$H$87 -> 289.8 | D87: =$D$7*$H$87 -> 231.84 | E87: =$E$7*$H$87 -> 173.88 | F87: =$F$7*$H$87 -> 115.92 | G87: è | H87: 0.09
A88: 6th | B88: =$B$7*$H$88 -> 309.12 | C88: =$C$7*$H$88 -> 257.6 | D88: =$D$7*$H$88 -> 206.08 | E88: =$E$7*$H$88 -> 154.56 | F88: =$F$7*$H$88 -> 103.04 | G88: è | H88: 0.08
A89: 7th | B89: =$B$7*$H$89 -> 270.48 | C89: =$C$7*$H$89 -> 225.4 | D89: =$D$7*$H$89 -> 180.32 | E89: =$E$7*$H$89 -> 135.24 | F89: =$F$7*$H$89 -> 90.16 | G89: è | H89: 0.07
A90: 8th | B90: =$B$7*$H$90 -> 231.84 | C90: =$C$7*$H$90 -> 193.2 | D90: =$D$7*$H$90 -> 154.56 | E90: =$E$7*$H$90 -> 115.92 | F90: =$F$7*$H$90 -> 77.28 | G90: è | H90: 0.06
A91: 9th | B91: =$B$7*$H$91 -> 193.2 | C91: =$C$7*$H$91 -> 161 | D91: =$D$7*$H$91 -> 128.8 | E91: =$E$7*$H$91 -> 96.6 | F91: =$F$7*$H$91 -> 64.4 | G91: è | H91: 0.05
A92: 10th | B92: =$B$7*$H$92 -> 154.56 | C92: =$C$7*$H$92 -> 128.8 | D92: =$D$7*$H$92 -> 103.04 | E92: =$E$7*$H$92 -> 77.28 | F92: =$F$7*$H$92 -> 51.52 | G92: è | H92: 0.04
A93: 11th | B93: =$B$7*$H$93 -> 115.92 | C93: =$C$7*$H$93 -> 96.6 | D93: =$D$7*$H$93 -> 77.28 | E93: =$E$7*$H$93 -> 57.96 | F93: =$F$7*$H$93 -> 38.64 | G93: è | H93: 0.03
A94: 12th | B94: =$B$7*$H$94 -> 77.28 | C94: =$C$7*$H$94 -> 64.4 | D94: =$D$7*$H$94 -> 51.52 | E94: =$E$7*$H$94 -> 38.64 | F94: =$F$7*$H$94 -> 25.76 | G94: è | H94: 0.02
A95: Totals | B95: =SUM(B83:B94) -> 3864 | C95: =SUM(C83:C94) -> 3220 | D95: =SUM(D83:D94) -> 2576 | E95: =SUM(E83:E94) -> 1932 | F95: =SUM(F83:F94) -> 1288 | G95: =SUM(B95:F95) -> 12880 | H95: =SUM(H83:H94) -> 1
A97: For 667-1000 riders 15 places
A98: Placings | B98: 1D | C98: 2D | D98: 3D | E98: 4D | F98: 5D
A99: 1st | B99: =$B$7*$H$99 -> 695.52 | C99: =$C$7*$H$99 -> 579.6 | D99: =$D$7*$H$99 -> 463.68 | E99: =$E$7*$H$99 -> 347.76 | F99: =$F$7*$H$99 -> 231.84 | G99: è | H99: 0.18
A100: 2nd | B100: =$B$7*$H$100 -> 579.6 | C100: =$C$7*$H$100 -> 483 | D100: =$D$7*$H$100 -> 386.4 | E100: =$E$7*$H$100 -> 289.8 | F100: =$F$7*$H$100 -> 193.2 | G100: è | H100: 0.15
A101: 3rd | B101: =$B$7*$H$101 -> 463.68 | C101: =$C$7*$H$101 -> 386.4 | D101: =$D$7*$H$101 -> 309.12 | E101: =$E$7*$H$101 -> 231.84 | F101: =$F$7*$H$101 -> 154.56 | G101: è | H101: 0.12
A102: 4th | B102: =$B$7*$H$102 -> 386.4 | C102: =$C$7*$H$102 -> 322 | D102: =$D$7*$H$102 -> 257.6 | E102: =$E$7*$H$102 -> 193.2 | F102: =$F$7*$H$102 -> 128.8 | G102: è | H102: 0.1
A103: 5th | B103: =$B$7*$H$103 -> 328.44 | C103: =$C$7*$H$103 -> 273.7 | D103: =$D$7*$H$103 -> 218.96 | E103: =$E$7*$H$103 -> 164.22 | F103: =$F$7*$H$103 -> 109.48 | G103: è | H103: 0.085
A104: 6th | B104: =$B$7*$H$104 -> 270.48 | C104: =$C$7*$H$104 -> 225.4 | D104: =$D$7*$H$104 -> 180.32 | E104: =$E$7*$H$104 -> 135.24 | F104: =$F$7*$H$104 -> 90.16 | G104: è | H104: 0.07
A105: 7th | B105: =$B$7*$H$105 -> 231.84 | C105: =$C$7*$H$105 -> 193.2 | D105: =$D$7*$H$105 -> 154.56 | E105: =$E$7*$H$105 -> 115.92 | F105: =$F$7*$H$105 -> 77.28 | G105: è | H105: 0.06
A106: 8th | B106: =$B$7*$H$106 -> 193.2 | C106: =$C$7*$H$106 -> 161 | D106: =$D$7*$H$106 -> 128.8 | E106: =$E$7*$H$106 -> 96.6 | F106: =$F$7*$H$106 -> 64.4 | G106: è | H106: 0.05
A107: 9th | B107: =$B$7*$H$107 -> 164.22 | C107: =$C$7*$H$107 -> 136.85 | D107: =$D$7*$H$107 -> 109.48 | E107: =$E$7*$H$107 -> 82.11 | F107: =$F$7*$H$107 -> 54.74 | G107: è | H107: 0.0425
A108: 10th | B108: =$B$7*$H$108 -> 135.24 | C108: =$C$7*$H$108 -> 112.7 | D108: =$D$7*$H$108 -> 90.16 | E108: =$E$7*$H$108 -> 67.62 | F108: =$F$7*$H$108 -> 45.08 | G108: è | H108: 0.035
A109: 11th | B109: =$B$7*$H$109 -> 115.92 | C109: =$C$7*$H$109 -> 96.6 | D109: =$D$7*$H$109 -> 77.28 | E109: =$E$7*$H$109 -> 57.96 | F109: =$F$7*$H$109 -> 38.64 | G109: è | H109: 0.03
A110: 12th | B110: =$B$7*$H$110 -> 96.6 | C110: =$C$7*$H$110 -> 80.5 | D110: =$D$7*$H$110 -> 64.4 | E110: =$E$7*$H$110 -> 48.3 | F110: =$F$7*$H$110 -> 32.2 | G110: è | H110: 0.025
A111: 13th | B111: =$B$7*$H$111 -> 77.28 | C111: =$C$7*$H$111 -> 64.4 | D111: =$D$7*$H$111 -> 51.52 | E111: =$E$7*$H$111 -> 38.64 | F111: =$F$7*$H$111 -> 25.76 | G111: è | H111: 0.02
A112: 14th | B112: =$B$7*$H$112 -> 67.62 | C112: =$C$7*$H$112 -> 56.35 | D112: =$D$7*$H$112 -> 45.08 | E112: =$E$7*$H$112 -> 33.81 | F112: =$F$7*$H$112 -> 22.54 | G112: è | H112: 0.0175
A113: 15th | B113: =$B$7*$H$113 -> 57.96 | C113: =$C$7*$H$113 -> 48.3 | D113: =$D$7*$H$113 -> 38.64 | E113: =$E$7*$H$113 -> 28.98 | F113: =$F$7*$H$113 -> 19.32 | G113: è | H113: 0.015
A114: Totals | B114: =SUM(B99:B113) -> 3864 | C114: =SUM(C99:C113) -> 3220 | D114: =SUM(D99:D113) -> 2576 | E114: =SUM(E99:E113) -> 1932 | F114: =SUM(F99:F113) -> 1288 | G114: =SUM(B114:F114) -> 12880 | H114: =SUM(H99:H113) -> 1
A116: For 1001-1500 riders 20 places
A117: Placings | B117: 1D | C117: 2D | D117: 3D | E117: 4D | F117: 5D
A118: 1st | B118: =$B$7*$H$118 -> 540.96 | C118: =$C$7*$H$118 -> 450.8 | D118: =$D$7*$H$118 -> 360.64 | E118: =$E$7*$H$118 -> 270.48 | F118: =$F$7*$H$118 -> 180.32 | G118: è | H118: 0.14
A119: 2nd | B119: =$B$7*$H$119 -> 425.04 | C119: =$C$7*$H$119 -> 354.2 | D119: =$D$7*$H$119 -> 283.36 | E119: =$E$7*$H$119 -> 212.52 | F119: =$F$7*$H$119 -> 141.68 | G119: è | H119: 0.11
A120: 3rd | B120: =$B$7*$H$120 -> 347.76 | C120: =$C$7*$H$120 -> 289.8 | D120: =$D$7*$H$120 -> 231.84 | E120: =$E$7*$H$120 -> 173.88 | F120: =$F$7*$H$120 -> 115.92 | G120: è | H120: 0.09
A121: 4th | B121: =$B$7*$H$121 -> 297.528 | C121: =$C$7*$H$121 -> 247.94 | D121: =$D$7*$H$121 -> 198.352 | E121: =$E$7*$H$121 -> 148.764 | F121: =$F$7*$H$121 -> 99.176 | G121: è | H121: 0.077
A122: 5th | B122: =$B$7*$H$122 -> 270.48 | C122: =$C$7*$H$122 -> 225.4 | D122: =$D$7*$H$122 -> 180.32 | E122: =$E$7*$H$122 -> 135.24 | F122: =$F$7*$H$122 -> 90.16 | G122: è | H122: 0.07
A123: 6th | B123: =$B$7*$H$123 -> 251.16 | C123: =$C$7*$H$123 -> 209.3 | D123: =$D$7*$H$123 -> 167.44 | E123: =$E$7*$H$123 -> 125.58 | F123: =$F$7*$H$123 -> 83.72 | G123: è | H123: 0.065
A124: 7th | B124: =$B$7*$H$124 -> 231.84 | C124: =$C$7*$H$124 -> 193.2 | D124: =$D$7*$H$124 -> 154.56 | E124: =$E$7*$H$124 -> 115.92 | F124: =$F$7*$H$124 -> 77.28 | G124: è | H124: 0.06
A125: 8th | B125: =$B$7*$H$125 -> 212.52 | C125: =$C$7*$H$125 -> 177.1 | D125: =$D$7*$H$125 -> 141.68 | E125: =$E$7*$H$125 -> 106.26 | F125: =$F$7*$H$125 -> 70.84 | G125: è | H125: 0.055
A126: 9th | B126: =$B$7*$H$126 -> 193.2 | C126: =$C$7*$H$126 -> 161 | D126: =$D$7*$H$126 -> 128.8 | E126: =$E$7*$H$126 -> 96.6 | F126: =$F$7*$H$126 -> 64.4 | G126: è | H126: 0.05
A127: 10th | B127: =$B$7*$H$127 -> 173.88 | C127: =$C$7*$H$127 -> 144.9 | D127: =$D$7*$H$127 -> 115.92 | E127: =$E$7*$H$127 -> 86.94 | F127: =$F$7*$H$127 -> 57.96 | G127: è | H127: 0.045
A128: 11th | B128: =$B$7*$H$128 -> 154.56 | C128: =$C$7*$H$128 -> 128.8 | D128: =$D$7*$H$128 -> 103.04 | E128: =$E$7*$H$128 -> 77.28 | F128: =$F$7*$H$128 -> 51.52 | G128: è | H128: 0.04
A129: 12th | B129: =$B$7*$H$129 -> 142.968 | C129: =$C$7*$H$129 -> 119.14 | D129: =$D$7*$H$129 -> 95.312 | E129: =$E$7*$H$129 -> 71.484 | F129: =$F$7*$H$129 -> 47.656 | G129: è | H129: 0.037
A130: 13th | B130: =$B$7*$H$130 -> 127.512 | C130: =$C$7*$H$130 -> 106.26 | D130: =$D$7*$H$130 -> 85.008 | E130: =$E$7*$H$130 -> 63.756 | F130: =$F$7*$H$130 -> 42.504 | G130: è | H130: 0.033
A131: 14th | B131: =$B$7*$H$131 -> 112.056 | C131: =$C$7*$H$131 -> 93.38 | D131: =$D$7*$H$131 -> 74.704 | E131: =$E$7*$H$131 -> 56.028 | F131: =$F$7*$H$131 -> 37.352 | G131: è | H131: 0.029
A132: 15th | B132: =$B$7*$H$132 -> 96.6 | C132: =$C$7*$H$132 -> 80.5 | D132: =$D$7*$H$132 -> 64.4 | E132: =$E$7*$H$132 -> 48.3 | F132: =$F$7*$H$132 -> 32.2 | G132: è | H132: 0.025
A133: 16th | B133: =$B$7*$H$133 -> 81.144 | C133: =$C$7*$H$133 -> 67.62 | D133: =$D$7*$H$133 -> 54.096 | E133: =$E$7*$H$133 -> 40.572 | F133: =$F$7*$H$133 -> 27.048 | G133: è | H133: 0.021
A134: 17th | B134: =$B$7*$H$134 -> 65.688 | C134: =$C$7*$H$134 -> 54.74 | D134: =$D$7*$H$134 -> 43.792 | E134: =$E$7*$H$134 -> 32.844 | F134: =$F$7*$H$134 -> 21.896 | G134: è | H134: 0.017
A135: 18th | B135: =$B$7*$H$135 -> 54.096 | C135: =$C$7*$H$135 -> 45.08 | D135: =$D$7*$H$135 -> 36.064 | E135: =$E$7*$H$135 -> 27.048 | F135: =$F$7*$H$135 -> 18.032 | G135: è | H135: 0.014
A136: 19th | B136: =$B$7*$H$136 -> 46.368 | C136: =$C$7*$H$136 -> 38.64 | D136: =$D$7*$H$136 -> 30.912 | E136: =$E$7*$H$136 -> 23.184 | F136: =$F$7*$H$136 -> 15.456 | G136: è | H136: 0.012
A137: 20th | B137: =$B$7*$H$137 -> 38.64 | C137: =$C$7*$H$137 -> 32.2 | D137: =$D$7*$H$137 -> 25.76 | E137: =$E$7*$H$137 -> 19.32 | F137: =$F$7*$H$137 -> 12.88 | G137: è | H137: 0.01
A138: Totals | B138: =SUM(B118:B137) -> 3864 | C138: =SUM(C118:C137) -> 3220 | D138: =SUM(D118:D137) -> 2576 | E138: =SUM(E118:E137) -> 1932 | F138: =SUM(F118:F137) -> 1288 | G138: =SUM(B138:F138) -> 12880 | H138: =SUM(H118:H137) -> 1
A140: For 1501 or More riders 30 places
A141: Placings | B141: 1D | C141: 2D | D141: 3D | E141: 4D | F141: 5D
A142: 1st | B142: =$B$7*$H142 -> 463.68 | C142: =$C$7*$H142 -> 386.4 | D142: =$D$7*$H142 -> 309.12 | E142: =$E$7*$H142 -> 231.84 | F142: =$F$7*$H142 -> 154.56 | G142: è | H142: 0.12
A143: 2nd | B143: =$B$7*$H143 -> 367.08 | C143: 305.9 | D143: 244.72 | E143: 183.54 | F143: 122.36 | G143: è | H143: 0.095
A144: 3rd | B144: =$B$7*$H144 -> 282.072 | C144: 235.06 | D144: 188.048 | E144: 141.036 | F144: 94.024 | G144: è | H144: 0.073
A145: 4th | B145: =$B$7*$H145 -> 239.568 | C145: 199.64 | D145: 159.712 | E145: 119.784 | F145: 79.856 | G145: è | H145: 0.062
A146: 5th | B146: 193.2 | C146: 161 | D146: 128.8 | E146: 96.6 | F146: 64.4 | G146: è | H146: 0.05
A147: 6th | B147: 173.88 | C147: 144.9 | D147: 115.92 | E147: 86.94 | F147: 57.96 | G147: è | H147: 0.045
A148: 7th | B148: 166.152 | C148: 138.46 | D148: 110.768 | E148: 83.076 | F148: 55.384 | G148: è | H148: 0.043
A149: 8th | B149: 154.56 | C149: 128.8 | D149: 103.04 | E149: 77.28 | F149: 51.52 | G149: è | H149: 0.04
A150: 9th | B150: 142.968 | C150: 119.14 | D150: 95.312 | E150: 71.484 | F150: 47.656 | G150: è | H150: 0.037
A151: 10th | B151: 135.24 | C151: 112.7 | D151: 90.16 | E151: 67.62 | F151: 45.08 | G151: è | H151: 0.035
A152: 11th | B152: 127.512 | C152: 106.26 | D152: 85.008 | E152: 63.756 | F152: 42.504 | G152: è | H152: 0.033
A153: 12th | B153: 119.784 | C153: 99.82 | D153: 79.856 | E153: 59.892 | F153: 39.928 | G153: è | H153: 0.031
A154: 13th | B154: 112.056 | C154: 93.38 | D154: 74.704 | E154: 56.028 | F154: 37.352 | G154: è | H154: 0.029
A155: 14th | B155: 104.328 | C155: 86.94 | D155: 69.552 | E155: 52.164 | F155: 34.776 | G155: è | H155: 0.027
A156: 15th | B156: 96.6 | C156: 80.5 | D156: 64.4 | E156: 48.3 | F156: 32.2 | G156: è | H156: 0.025
A157: 16th | B157: 92.736 | C157: 77.28 | D157: 61.824 | E157: 46.368 | F157: 30.912 | G157: è | H157: 0.024
A158: 17th | B158: 88.872 | C158: 74.06 | D158: 59.248 | E158: 44.436 | F158: 29.624 | G158: è | H158: 0.023
A159: 18th | B159: 85.008 | C159: 70.84 | D159: 56.672 | E159: 42.504 | F159: 28.336 | G159: è | H159: 0.022
A160: 19th | B160: 81.144 | C160: 67.62 | D160: 54.096 | E160: 40.572 | F160: 27.048 | G160: è | H160: 0.021
A161: 20th | B161: 77.28 | C161: 64.4 | D161: 51.52 | E161: 38.64 | F161: 25.76 | G161: è | H161: 0.02
A162: 21st | B162: 73.416 | C162: 61.18 | D162: 48.944 | E162: 36.708 | F162: 24.472 | G162: è | H162: 0.019
A163: 22nd | B163: 69.552 | C163: 57.96 | D163: 46.368 | E163: 34.776 | F163: 23.184 | G163: è | H163: 0.018
A164: 23rd | B164: 65.688 | C164: 54.74 | D164: 43.792 | E164: 32.844 | F164: 21.896 | G164: è | H164: 0.017
A165: 24th | B165: 61.824 | C165: 51.52 | D165: 41.216 | E165: 30.912 | F165: 20.608 | G165: è | H165: 0.016
A166: 25th | B166: 57.96 | C166: 48.3 | D166: 38.64 | E166: 28.98 | F166: 19.32 | G166: è | H166: 0.015
A167: 26th | B167: 54.096 | C167: 45.08 | D167: 36.064 | E167: 27.048 | F167: 18.032 | G167: è | H167: 0.014
A168: 27th | B168: 50.232 | C168: 41.86 | D168: 33.488 | E168: 25.116 | F168: 16.744 | G168: è | H168: 0.013
A169: 28th | B169: 46.368 | C169: 38.64 | D169: 30.912 | E169: 23.184 | F169: 15.456 | G169: è | H169: 0.012
A170: 29th | B170: 42.504 | C170: 35.42 | D170: 28.336 | E170: 21.252 | F170: 14.168 | G170: è | H170: 0.011
A171: 30th | B171: 38.64 | C171: 32.2 | D171: 25.76 | E171: 19.32 | F171: 12.88 | G171: è | H171: 0.01
A172: Totals | B172: =SUM(B142:B171) -> 3864 | C172: =SUM(C142:C171) -> 3220 | D172: =SUM(D142:D171) -> 2576 | E172: =SUM(E142:E171) -> 1932 | F172: =SUM(F142:F171) -> 1288 | G172: =SUM(B172:F172) -> 12880 | H172: =SUM(H142:H171) -> 1

Sheet DON'T TOUCH (hidden)
A2: Yes | C2: S | D2: 5 | E2: X
C3: A | D3: 10
C4: Y | D4: 15
C5: P | D5: BP
D6: SCR
